Organisation Name (A),Department (B),Service Cat Label �,Purpose of Spend (D),Expenditure CIPFA Sub Group �,Supplier (F),Supplier Reference (G),Pay Date (H),Transaction Number (I),Net Amount (J),Grant to VCSE? (K),Charity Number (L),Card Transaction (M),Irrecoverable VAT (N)
Pendle Borough Council,Democratic & Legal Services,Supplies and Services,Newspapers & Periodicals,4305,RUKHSAR KHALIQ - CARR ROAD NEWS,A0000067, 26/01/2017,DAL0276950,42.9,N,N/A,N,N/A
Pendle Borough Council,Democratic & Legal Services,Supplies and Services,Newspapers & Periodicals,4305,RUKHSAR KHALIQ - CARR ROAD NEWS,A0000067, 26/01/2017,DAL0276950,53.9,N,N/A,N,N/A
Pendle Borough Council,Financial Services,Supplies and Services,Subscriptions & Donations,4706,ALARM,A0000081, 26/01/2017,AAS0277045,199,N,N/A,N,N/A
Pendle Borough Council,Parks & Recreation Services,Supplies and Services,Expenditure : Materials,2,BALMERS GM LIMITED,A0000198, 19/01/2017,PCO0276891,500,N,N/A,N,N/A
Pendle Borough Council,Parks & Recreation Services,Transport Related Expense,Tprt : Repairs : General,3105,BALMERS GM LIMITED,A0000198, 19/01/2017,PCO0276891,83.71,N,N/A,N,N/A
Pendle Borough Council,Parks & Recreation Services,Transport Related Expense,Tprt : Repairs : General,3105,BALMERS GM LIMITED,A0000198, 19/01/2017,PCO0276891,154.95,N,N/A,N,N/A
Pendle Borough Council,Parks & Recreation Services,Transport Related Expense,Tprt : Repairs : General,3105,BALMERS GM LIMITED,A0000198, 19/01/2017,PCO0276891,154.95,N,N/A,N,N/A
Pendle Borough Council,Parks & Recreation Services,Transport Related Expense,Tprt : Repairs : General,3105,BALMERS GM LIMITED,A0000198, 19/01/2017,PCO0276891,154.95,N,N/A,N,N/A
Pendle Borough Council,Parks & Recreation Services,Transport Related Expense,Tprt : Repairs : General,3105,BALMERS GM LIMITED,A0000198, 19/01/2017,PCO0276891,154.95,N,N/A,N,N/A
Pendle Borough Council,Parks & Recreation Services,Transport Related Expense,Tprt : Repairs : General,3105,BALMERS GM LIMITED,A0000198, 19/01/2017,PCO0276891,90.61,N,N/A,N,N/A
Pendle Borough Council,Parks & Recreation Services,Transport Related Expense,Tprt : Repairs : General,3105,BALMERS GM LIMITED,A0000198, 19/01/2017,PCO0276891,38.67,N,N/A,N,N/A
Pendle Borough Council,Parks & Recreation Services,Transport Related Expense,Tprt : Repairs : General,3105,BALMERS GM LIMITED,A0000198, 19/01/2017,PCO0276891,38.67,N,N/A,N,N/A
Pendle Borough Council,Parks & Recreation Services,Transport Related Expense,Tprt : Repairs : General,3105,BALMERS GM LIMITED,A0000198, 19/01/2017,PCO0276891,90.61,N,N/A,N,N/A
Pendle Borough Council,Parks & Recreation Services,Transport Related Expense,Tprt : Repairs : General,3105,BALMERS GM LIMITED,A0000198, 19/01/2017,PCO0276891,38.67,N,N/A,N,N/A
Pendle Borough Council,Parks & Recreation Services,Transport Related Expense,Tprt : Repairs : General,3105,BALMERS GM LIMITED,A0000198, 19/01/2017,PCO0276891,38.67,N,N/A,N,N/A
Pendle Borough Council,Parks & Recreation Services,Premises Related Expense,Bldgs : R & M : Day To Day,2001,BARNES JB LIMITED,A0000202, 05/01/2017,PCO0276610,10.33,N,N/A,N,N/A
Pendle Borough Council,Operational Services,Premises Related Expense,Bldgs : R & M : Day To Day,2001,BARNES JB LIMITED,A0000202, 19/01/2017,OPS0276880,54,N,N/A,N,N/A
Pendle Borough Council,Parks & Recreation Services,Premises Related Expense,Grounds : R & M : Day to Day : Routine,2101,BARNES JB LIMITED,A0000202, 19/01/2017,PCO0276897,8.79,N,N/A,N,N/A
Pendle Borough Council,Parks & Recreation Services,Premises Related Expense,Grounds : R & M : Day to Day : Routine,2101,BARNES JB LIMITED,A0000202, 19/01/2017,PCO0276897,69.1,N,N/A,N,N/A
Pendle Borough Council,Parks & Recreation Services,Transport Related Expense,Tprt : Repairs : General,3105,BARNES JB LIMITED,A0000202, 26/01/2017,PCO4005239,-27.2,N,N/A,N,N/A
Pendle Borough Council,Parks & Recreation Services,Transport Related Expense,Tprt : Repairs : General,3105,BARNES JB LIMITED,A0000202, 19/01/2017,PCO0276894,4.35,N,N/A,N,N/A
Pendle Borough Council,Parks & Recreation Services,Transport Related Expense,Tprt : Repairs : General,3105,BARNES JB LIMITED,A0000202, 26/01/2017,PCO0276962,9.6,N,N/A,N,N/A
Pendle Borough Council,Parks & Recreation Services,Transport Related Expense,Tprt : Repairs : General,3105,BARNES JB LIMITED,A0000202, 26/01/2017,PCO0276971,9.84,N,N/A,N,N/A
Pendle Borough Council,Parks & Recreation Services,Transport Related Expense,Tprt : Repairs : General,3105,BARNES JB LIMITED,A0000202, 05/01/2017,PCO0276541,22.43,N,N/A,N,N/A
Pendle Borough Council,Parks & Recreation Services,Transport Related Expense,Tprt : Repairs : General,3105,BARNES JB LIMITED,A0000202, 26/01/2017,PCO0276971,27.2,N,N/A,N,N/A
Pendle Borough Council,Parks & Recreation Services,Transport Related Expense,Tprt : Repairs : General,3105,BARNES JB LIMITED,A0000202, 19/01/2017,PCO0276894,33.98,N,N/A,N,N/A
Pendle Borough Council,Environmental Health Services,Supplies and Services,EFM : Other Equipment,4003,BARNES JB LIMITED,A0000202, 05/01/2017,ENV0276570,27.2,N,N/A,N,N/A
Pendle Borough Council,Operational Services,Supplies and Services,EFM : Other Equipment,4003,BARNES JB LIMITED,A0000202, 19/01/2017,OPS0276880,5.75,N,N/A,N,N/A
Pendle Borough Council,Operational Services,Supplies and Services,EFM : Other Equipment,4003,BARNES JB LIMITED,A0000202, 19/01/2017,OPS0276880,150,N,N/A,N,N/A
Pendle Borough Council,Operational Services,Supplies and Services,EFM Materials,4004,BARNES JB LIMITED,A0000202, 26/01/2017,OPS0276943,33.84,N,N/A,N,N/A
Pendle Borough Council,Operational Services,Supplies and Services,Sub-Contractors,4007,BARNES JB LIMITED,A0000202, 19/01/2017,OPS0276868,51.94,N,N/A,N,N/A
Pendle Borough Council,Chief Executives Policy Unit,Supplies and Services,Other Expenses,4705,J H BLAKEY & SONS (SECURITY) LTD,A0000211, 12/01/2017,COR0276594,227.57,N,N/A,N,N/A
Pendle Borough Council,Parks & Recreation Services,Transport Related Expense,Tprt : Repairs : General,3105,BOC GASES LTD,A0000386, 12/01/2017,PCO0276775,10.9,N,N/A,N,N/A
Pendle Borough Council,Parks & Recreation Services,Transport Related Expense,Tprt : Repairs : General,3105,BOC GASES LTD,A0000386, 19/01/2017,PCO0276906,10.9,N,N/A,N,N/A
Pendle Borough Council,Property Services,Premises Related Expense,Bldgs : R & M : Day To Day,2001,BARROWFORD SAFE & LOCK SERV LT,A0000458, 12/01/2017,EST0276779,17.09,N,N/A,N,N/A
Pendle Borough Council,Property Services,Premises Related Expense,Bldgs : R & M : Day To Day,2001,BARROWFORD SAFE & LOCK SERV LT,A0000458, 12/01/2017,EST0276778,6,N,N/A,N,N/A
Pendle Borough Council,Parks & Recreation Services,Supplies and Services,Expenditure : Materials,2,BARROWFORD SAFE & LOCK & BB LOCKSMITHS,A0000510, 19/01/2017,PCO0276885,9.17,N,N/A,N,N/A
Pendle Borough Council,Parks & Recreation Services,Premises Related Expense,Bldgs : R & M : Day To Day,2001,BARROWFORD SAFE & LOCK & BB LOCKSMITHS,A0000510, 19/01/2017,PCO0276884,19.84,N,N/A,N,N/A
Pendle Borough Council,Parks & Recreation Services,Premises Related Expense,Bldgs : R & M : Day To Day,2001,BARROWFORD SAFE & LOCK & BB LOCKSMITHS,A0000510, 19/01/2017,PCO0276889,11.68,N,N/A,N,N/A
Pendle Borough Council,Parks & Recreation Services,Premises Related Expense,Bldgs : R & M : Day To Day,2001,BARROWFORD SAFE & LOCK & BB LOCKSMITHS,A0000510, 19/01/2017,PCO0276889,25.83,N,N/A,N,N/A
Pendle Borough Council,Parks & Recreation Services,Premises Related Expense,Bldgs : R & M : Day To Day,2001,BARROWFORD SAFE & LOCK & BB LOCKSMITHS,A0000510, 19/01/2017,PCO0276884,17.52,N,N/A,N,N/A
Pendle Borough Council,Parks & Recreation Services,Premises Related Expense,Bldgs : R & M : Day To Day,2001,BARROWFORD SAFE & LOCK & BB LOCKSMITHS,A0000510, 19/01/2017,PCO0276884,20.44,N,N/A,N,N/A
Pendle Borough Council,Parks & Recreation Services,Premises Related Expense,Bldgs : R & M : Day To Day,2001,BARROWFORD SAFE & LOCK & BB LOCKSMITHS,A0000510, 19/01/2017,PCO0276885,29.76,N,N/A,N,N/A
Pendle Borough Council,Parks & Recreation Services,Premises Related Expense,Bldgs : R & M : Day To Day,2001,BARROWFORD SAFE & LOCK & BB LOCKSMITHS,A0000510, 19/01/2017,PCO0276889,2.92,N,N/A,N,N/A
Pendle Borough Council,Parks & Recreation Services,Transport Related Expense,Tprt : Repairs : General,3105,BARROWFORD SAFE & LOCK & BB LOCKSMITHS,A0000510, 19/01/2017,PCO0276889,5.84,N,N/A,N,N/A
Pendle Borough Council,Parks & Recreation Services,Transport Related Expense,Tprt : Repairs : General,3105,BARROWFORD SAFE & LOCK & BB LOCKSMITHS,A0000510, 19/01/2017,PCO0276889,27.12,N,N/A,N,N/A
Pendle Borough Council,Parks & Recreation Services,Transport Related Expense,Tprt : Repairs : General,3105,BARROWFORD SAFE & LOCK & BB LOCKSMITHS,A0000510, 19/01/2017,PCO0276889,29.8,N,N/A,N,N/A
Pendle Borough Council,Parks & Recreation Services,Transport Related Expense,Tprt : Repairs : General,3105,BARROWFORD SAFE & LOCK & BB LOCKSMITHS,A0000510, 19/01/2017,PCO0276885,45.6,N,N/A,N,N/A
Pendle Borough Council,Parks & Recreation Services,Supplies and Services,EFM Materials,4004,BARROWFORD SAFE & LOCK & BB LOCKSMITHS,A0000510, 19/01/2017,PCO0276889,8.76,N,N/A,N,N/A
Pendle Borough Council,Housing Regeneration Services,Capital Costs,Capital : Payments,CD14,MARTIN COLLINS JOINERY & GLAZING,A0000623, 05/01/2017,HMR0276569,45,N,N/A,N,N/A
Pendle Borough Council,Housing Regeneration Services,Capital Costs,Capital : Payments,CD14,MARTIN COLLINS JOINERY & GLAZING,A0000623, 12/01/2017,HMR0276632,115,N,N/A,N,N/A
Pendle Borough Council,Parks & Recreation Services,Indirect Employee Expenses,Training,1211,CRAVEN COLLEGE,A0000735, 26/01/2017,PCO0276965,390,N,N/A,N,N/A
Pendle Borough Council,Parks & Recreation Services,Supplies and Services,Protective Clothing,4201,ENGINEERING & FOUNDRY SUPPLIES,A0001002, 26/01/2017,PCO0276963,24.75,N,N/A,N,N/A
Pendle Borough Council,Operational Services,,Stock : Purchases,PJ01,ENGINEERING & FOUNDRY SUPPLIES,A0001002, 26/01/2017,OPS0276942,5.9,N,N/A,N,N/A
Pendle Borough Council,Operational Services,,Stock : Purchases,PJ01,ENGINEERING & FOUNDRY SUPPLIES,A0001002, 12/01/2017,OPS0276623,12.75,N,N/A,N,N/A
Pendle Borough Council,Operational Services,,Stock : Purchases,PJ01,ENGINEERING & FOUNDRY SUPPLIES,A0001002, 12/01/2017,OPS0276623,12.75,N,N/A,N,N/A
Pendle Borough Council,Operational Services,,Stock : Purchases,PJ01,ENGINEERING & FOUNDRY SUPPLIES,A0001002, 12/01/2017,OPS0276623,15.25,N,N/A,N,N/A
Pendle Borough Council,Operational Services,,Stock : Purchases,PJ01,ENGINEERING & FOUNDRY SUPPLIES,A0001002, 26/01/2017,OPS0276942,30.4,N,N/A,N,N/A
Pendle Borough Council,Operational Services,,Stock : Purchases,PJ01,ENGINEERING & FOUNDRY SUPPLIES,A0001002, 26/01/2017,OPS0276942,30.4,N,N/A,N,N/A
Pendle Borough Council,Operational Services,,Stock : Purchases,PJ01,ENGINEERING & FOUNDRY SUPPLIES,A0001002, 26/01/2017,OPS0276942,30.4,N,N/A,N,N/A
Pendle Borough Council,Operational Services,,Stock : Purchases,PJ01,ENGINEERING & FOUNDRY SUPPLIES,A0001002, 12/01/2017,OPS0276623,40.02,N,N/A,N,N/A
Pendle Borough Council,Operational Services,,Stock : Purchases,PJ01,ENGINEERING & FOUNDRY SUPPLIES,A0001002, 12/01/2017,OPS0276623,40.03,N,N/A,N,N/A
Pendle Borough Council,Operational Services,,Stock : Purchases,PJ01,ENGINEERING & FOUNDRY SUPPLIES,A0001002, 12/01/2017,OPS0276623,41.8,N,N/A,N,N/A
Pendle Borough Council,Operational Services,,Stock : Purchases,PJ01,ENGINEERING & FOUNDRY SUPPLIES,A0001002, 12/01/2017,OPS0276623,41.8,N,N/A,N,N/A
Pendle Borough Council,Operational Services,,Stock : Purchases,PJ01,ENGINEERING & FOUNDRY SUPPLIES,A0001002, 05/01/2017,OPS0276526,45.6,N,N/A,N,N/A
Pendle Borough Council,Operational Services,,Stock : Purchases,PJ01,ENGINEERING & FOUNDRY SUPPLIES,A0001002, 26/01/2017,OPS0276942,51.6,N,N/A,N,N/A
Pendle Borough Council,Operational Services,,Stock : Purchases,PJ01,ENGINEERING & FOUNDRY SUPPLIES,A0001002, 26/01/2017,OPS0276942,51.6,N,N/A,N,N/A
Pendle Borough Council,Operational Services,,Stock : Purchases,PJ01,ENGINEERING & FOUNDRY SUPPLIES,A0001002, 26/01/2017,OPS0276942,60.2,N,N/A,N,N/A
Pendle Borough Council,Operational Services,,Stock : Purchases,PJ01,ENGINEERING & FOUNDRY SUPPLIES,A0001002, 26/01/2017,OPS0276942,74.26,N,N/A,N,N/A
Pendle Borough Council,Operational Services,,Stock : Purchases,PJ01,ENGINEERING & FOUNDRY SUPPLIES,A0001002, 12/01/2017,OPS0276624,74.56,N,N/A,N,N/A
Pendle Borough Council,Operational Services,,Stock : Purchases,PJ01,ENGINEERING & FOUNDRY SUPPLIES,A0001002, 19/01/2017,OPS0276809,75.96,N,N/A,N,N/A
Pendle Borough Council,Operational Services,,Stock : Purchases,PJ01,ENGINEERING & FOUNDRY SUPPLIES,A0001002, 26/01/2017,OPS0276942,75.96,N,N/A,N,N/A
Pendle Borough Council,Operational Services,,Stock : Purchases,PJ01,ENGINEERING & FOUNDRY SUPPLIES,A0001002, 26/01/2017,OPS0276942,75.96,N,N/A,N,N/A
Pendle Borough Council,Operational Services,,Stock : Purchases,PJ01,ENGINEERING & FOUNDRY SUPPLIES,A0001002, 26/01/2017,OPS0276942,75.96,N,N/A,N,N/A
Pendle Borough Council,Operational Services,,Stock : Purchases,PJ01,ENGINEERING & FOUNDRY SUPPLIES,A0001002, 26/01/2017,OPS0276942,75.96,N,N/A,N,N/A
Pendle Borough Council,Operational Services,,Stock : Purchases,PJ01,ENGINEERING & FOUNDRY SUPPLIES,A0001002, 12/01/2017,OPS0276623,90,N,N/A,N,N/A
Pendle Borough Council,Operational Services,,Stock : Purchases,PJ01,ENGINEERING & FOUNDRY SUPPLIES,A0001002, 26/01/2017,OPS0276942,90,N,N/A,N,N/A
Pendle Borough Council,Operational Services,,Stock : Purchases,PJ01,ENGINEERING & FOUNDRY SUPPLIES,A0001002, 12/01/2017,OPS0276624,106.5,N,N/A,N,N/A
Pendle Borough Council,Operational Services,,Stock : Purchases,PJ01,ENGINEERING & FOUNDRY SUPPLIES,A0001002, 12/01/2017,OPS0276624,114,N,N/A,N,N/A
Pendle Borough Council,Operational Services,,Stock : Purchases,PJ01,ENGINEERING & FOUNDRY SUPPLIES,A0001002, 26/01/2017,OPS0276942,164,N,N/A,N,N/A
Pendle Borough Council,Property Services,Capital Costs,Capital : Payments,CD14,FIRST SIGNS LIMITED,A0001121, 12/01/2017,EST0276761,10,N,N/A,N,N/A
Pendle Borough Council,Parks & Recreation Services,Transport Related Expense,Tprt : Repairs : General,3105,GIBSONS GARDEN MACHINERY LTD,A0001201, 19/01/2017,PCO0276899,59.2,N,N/A,N,N/A
Pendle Borough Council,Parks & Recreation Services,Transport Related Expense,Tprt : Repairs : General,3105,GIBSONS GARDEN MACHINERY LTD,A0001201, 19/01/2017,PCO0276899,206.3,N,N/A,N,N/A
Pendle Borough Council,Parks & Recreation Services,Transport Related Expense,Tprt : Repairs : General,3105,GIBSONS GARDEN MACHINERY LTD,A0001201, 12/01/2017,PCO0276770,433.83,N,N/A,N,N/A
Pendle Borough Council,Parks & Recreation Services,Transport Related Expense,Tprt : Repairs : General,3105,GIBSONS GARDEN MACHINERY LTD,A0001201, 05/01/2017,PCO0276612,597.04,N,N/A,N,N/A
Pendle Borough Council,Parks & Recreation Services,Transport Related Expense,Tprt : Repairs : General,3105,GIBSONS GARDEN MACHINERY LTD,A0001201, 19/01/2017,PCO0276893,10.32,N,N/A,N,N/A
Pendle Borough Council,Parks & Recreation Services,Transport Related Expense,Tprt : Repairs : General,3105,GIBSONS GARDEN MACHINERY LTD,A0001201, 19/01/2017,PCO0276893,15.68,N,N/A,N,N/A
Pendle Borough Council,Environmental Health Services,Supplies and Services,Other Expenses,4705,GREENHAM TRADING LTD,A0001204, 19/01/2017,ENV0276856,44.54,N,N/A,N,N/A
Pendle Borough Council,Parks & Recreation Services,Premises Related Expense,Bldgs : R & M : Day To Day,2001,J HARGREAVES,A0001359, 19/01/2017,PCO0276898,25,N,N/A,N,N/A
Pendle Borough Council,Information Services,Supplies and Services,EFM : Office and computer equipment,4002,CDW LIMITED,A0001664, 19/01/2017,ITS0276857,179.08,N,N/A,N,N/A
Pendle Borough Council,Information Services,Supplies and Services,Protective Clothing,4201,CDW LIMITED,A0001664, 19/01/2017,ITS0276857,85,N,N/A,N,N/A
Pendle Borough Council,Information Services,Supplies and Services,Seminars etc All Costs,4601,CDW LIMITED,A0001664, 19/01/2017,ITS0276857,94.08,N,N/A,N,N/A
Pendle Borough Council,Parks & Recreation Services,Supplies and Services,Expenditure : Materials,2,LANLEE SUPPLIES LIMITED,A0001672, 26/01/2017,PCO0276961,12,N,N/A,N,N/A
Pendle Borough Council,Parks & Recreation Services,Supplies and Services,Expenditure : Materials,2,LANLEE SUPPLIES LIMITED,A0001672, 26/01/2017,PCO0276961,23.12,N,N/A,N,N/A
Pendle Borough Council,Parks & Recreation Services,Premises Related Expense,Grounds : R & M : Day to Day : Routine,2101,LANLEE SUPPLIES LIMITED,A0001672, 26/01/2017,PCO0276959,295.63,N,N/A,N,N/A
Pendle Borough Council,Parks & Recreation Services,Premises Related Expense,Grounds : R & M : Day to Day : Routine,2101,LANLEE SUPPLIES LIMITED,A0001672, 26/01/2017,PCO0276969,6.12,N,N/A,N,N/A
Pendle Borough Council,Parks & Recreation Services,Premises Related Expense,Grounds : R & M : Day to Day : Routine,2101,LANLEE SUPPLIES LIMITED,A0001672, 26/01/2017,PCO0276960,16.02,N,N/A,N,N/A
Pendle Borough Council,Parks & Recreation Services,Transport Related Expense,Tprt : Repairs : General,3105,LANLEE SUPPLIES LIMITED,A0001672, 05/01/2017,PCO0276615,30,N,N/A,N,N/A
Pendle Borough Council,Economic Development & Tourism,Supplies and Services,EFM : Other Equipment,4003,LANLEE SUPPLIES LIMITED,A0001672, 19/01/2017,REG0276829,9.95,N,N/A,N,N/A
Pendle Borough Council,Economic Development & Tourism,Supplies and Services,EFM Materials,4004,LANLEE SUPPLIES LIMITED,A0001672, 19/01/2017,REG0276830,65.16,N,N/A,N,N/A
Pendle Borough Council,Economic Development & Tourism,Supplies and Services,Miscellaneous : Other,4707,LANLEE SUPPLIES LIMITED,A0001672, 19/01/2017,REG0276796,6.38,N,N/A,N,N/A
Pendle Borough Council,Economic Development & Tourism,Supplies and Services,Miscellaneous : Other,4707,LANLEE SUPPLIES LIMITED,A0001672, 19/01/2017,REG0276795,13.04,N,N/A,N,N/A
Pendle Borough Council,Economic Development & Tourism,Supplies and Services,Miscellaneous : Other,4707,LANLEE SUPPLIES LIMITED,A0001672, 19/01/2017,REG0276829,15.16,N,N/A,N,N/A
Pendle Borough Council,Economic Development & Tourism,Supplies and Services,Miscellaneous : Other,4707,LANLEE SUPPLIES LIMITED,A0001672, 19/01/2017,REG0276831,18.1,N,N/A,N,N/A
Pendle Borough Council,Economic Development & Tourism,Supplies and Services,Miscellaneous : Other,4707,LANLEE SUPPLIES LIMITED,A0001672, 12/01/2017,REG0276654,27.16,N,N/A,N,N/A
Pendle Borough Council,Economic Development & Tourism,Supplies and Services,Miscellaneous : Other,4707,LANLEE SUPPLIES LIMITED,A0001672, 12/01/2017,REG0276655,39.92,N,N/A,N,N/A
Pendle Borough Council,Economic Development & Tourism,Supplies and Services,Miscellaneous : Other,4707,LANLEE SUPPLIES LIMITED,A0001672, 19/01/2017,REG0276797,45.89,N,N/A,N,N/A
Pendle Borough Council,Economic Development & Tourism,Supplies and Services,Miscellaneous : Other,4707,LANLEE SUPPLIES LIMITED,A0001672, 19/01/2017,REG0276798,46.67,N,N/A,N,N/A
Pendle Borough Council,Housing Regeneration Services,Capital Costs,Ren Grant : 1996 Act,CH22,LANCASHIRE COUNTY COUNCIL,A0001690, 12/01/2017,HMR0276648,799,N,N/A,N,133.17
Pendle Borough Council,Housing Regeneration Services,Capital Costs,Ren Grant : 1996 Act,CH22,LANCASHIRE COUNTY COUNCIL,A0001690, 12/01/2017,HMR0276650,4103,N,N/A,N,683.83
Pendle Borough Council,Engineering & Special Projects,Premises Related Expense,Grounds : R & M : Day to Day : Routine,2101,R & K LATHAM & SON,A0001718, 19/01/2017,HED0276814,250,N,N/A,N,N/A
Pendle Borough Council,Engineering & Special Projects,Premises Related Expense,Grounds : R & M : Day to Day : Routine,2101,JOHN MACADAM & SON (RESCUE) LTD,A0001846, 19/01/2017,HED0276837,45,N,N/A,N,N/A
Pendle Borough Council,Operational Services,Premises Related Expense,Grounds : R & M : Day to Day : Routine,2101,JOHN MACADAM & SON (RESCUE) LTD,A0001846, 05/01/2017,OPS0276607,45,N,N/A,N,N/A
Pendle Borough Council,Operational Services,Premises Related Expense,Grounds : R & M : Day to Day : Routine,2101,JOHN MACADAM & SON (RESCUE) LTD,A0001846, 12/01/2017,OPS0276754,45,N,N/A,N,N/A
Pendle Borough Council,Operational Services,Premises Related Expense,Grounds : R & M : Day to Day : Routine,2101,JOHN MACADAM & SON (RESCUE) LTD,A0001846, 19/01/2017,OPS0276825,45,N,N/A,N,N/A
Pendle Borough Council,Parks & Recreation Services,Transport Related Expense,Tprt : Repairs : General,3105,JOHN MACADAM & SON (RESCUE) LTD,A0001846, 19/01/2017,PCO0276904,472.5,N,N/A,N,N/A
Pendle Borough Council,Engineering & Special Projects,Capital Costs,Capital : Payments,CD14,JOHN MACADAM & SON (RESCUE) LTD,A0001846, 12/01/2017,HED0276772,45,N,N/A,N,N/A
Pendle Borough Council,Property Services,Premises Related Expense,Water & Sewerage,2501,UNITED UTILITIES,A0001986, 05/01/2017,EST0276575,382.77,N,N/A,N,N/A
Pendle Borough Council,Property Services,Premises Related Expense,Water & Sewerage,2501,UNITED UTILITIES,A0001986, 12/01/2017,EST0276771,439.57,N,N/A,N,N/A
Pendle Borough Council,Property Services,Premises Related Expense,Water & Sewerage,2501,UNITED UTILITIES,A0001986, 19/01/2017,EST0276851,47.45,N,N/A,N,N/A
Pendle Borough Council,Property Services,Premises Related Expense,Water & Sewerage,2501,UNITED UTILITIES,A0001986, 05/01/2017,EST0276578,255.52,N,N/A,N,N/A
Pendle Borough Council,Property Services,Premises Related Expense,Water & Sewerage,2501,UNITED UTILITIES,A0001986, 19/01/2017,EST0276849,98.13,N,N/A,N,N/A
Pendle Borough Council,Property Services,Premises Related Expense,Water & Sewerage,2501,UNITED UTILITIES,A0001986, 19/01/2017,EST0276852,60.52,N,N/A,N,N/A
Pendle Borough Council,Property Services,Premises Related Expense,Water & Sewerage,2501,UNITED UTILITIES,A0001986, 12/01/2017,EST0276766,39.14,N,N/A,N,N/A
Pendle Borough Council,Property Services,Premises Related Expense,Water & Sewerage,2501,UNITED UTILITIES,A0001986, 12/01/2017,EST0276769,584.31,N,N/A,N,N/A
Pendle Borough Council,Property Services,Premises Related Expense,Water & Sewerage,2501,UNITED UTILITIES,A0001986, 12/01/2017,EST0276768,722.08,N,N/A,N,N/A
Pendle Borough Council,Property Services,Premises Related Expense,Water & Sewerage,2501,UNITED UTILITIES,A0001986, 12/01/2017,EST0276763,63.16,N,N/A,N,N/A
Pendle Borough Council,Property Services,Premises Related Expense,Water & Sewerage,2501,UNITED UTILITIES,A0001986, 05/01/2017,EST0276579,1760.93,N,N/A,N,N/A
Pendle Borough Council,Property Services,Premises Related Expense,Water & Sewerage,2501,UNITED UTILITIES,A0001986, 05/01/2017,EST0276579,2425.08,N,N/A,N,N/A
Pendle Borough Council,Property Services,Premises Related Expense,Bldgs : R & M : Day To Day,2001,F NUTTER & SONS,A0002037, 12/01/2017,EST0276780,200,N,N/A,N,N/A
Pendle Borough Council,Property Services,Premises Related Expense,Bldgs : R & M : Day To Day,2001,F NUTTER & SONS,A0002037, 12/01/2017,EST0276780,560,N,N/A,N,N/A
Pendle Borough Council,Property Services,Capital Costs,Capital : Payments,CD14,F NUTTER & SONS,A0002037, 19/01/2017,EST0276844,3500,N,N/A,N,N/A
Pendle Borough Council,Parks & Recreation Services,Transport Related Expense,Tprt : Repairs : General,3105,OPTION HYGIENE LIMITED,A0002063, 12/01/2017,PCO0276773,7.92,N,N/A,N,N/A
Pendle Borough Council,Parks & Recreation Services,Transport Related Expense,Tprt : Repairs : General,3105,OPTION HYGIENE LIMITED,A0002063, 05/01/2017,PCO0276542,16.44,N,N/A,N,N/A
Pendle Borough Council,Parks & Recreation Services,Transport Related Expense,Tprt : Repairs : General,3105,OPTION HYGIENE LIMITED,A0002063, 12/01/2017,PCO0276767,40.28,N,N/A,N,N/A
Pendle Borough Council,Operational Services,Supplies and Services,Sub-Contractors,4007,OPTION HYGIENE LIMITED,A0002063, 05/01/2017,OPS0276602,16,N,N/A,N,N/A
Pendle Borough Council,Operational Services,Supplies and Services,Other Expenses,4705,OPTION HYGIENE LIMITED,A0002063, 19/01/2017,OPS0276808,8.25,N,N/A,N,N/A
Pendle Borough Council,Operational Services,,Stock : Purchases,PJ01,OPTION HYGIENE LIMITED,A0002063, 12/01/2017,OPS0276651,14.5,N,N/A,N,N/A
Pendle Borough Council,Operational Services,,Stock : Purchases,PJ01,OPTION HYGIENE LIMITED,A0002063, 19/01/2017,OPS0276807,15,N,N/A,N,N/A
Pendle Borough Council,Operational Services,Agency Staff,Emp : Agency Wages,1004,PENDLE PERSONNEL LTD,A0002198, 12/01/2017,OPS0276752,102.07,N,N/A,N,N/A
Pendle Borough Council,Operational Services,Agency Staff,Emp : Agency Wages,1004,PENDLE PERSONNEL LTD,A0002198, 26/01/2017,OPS0276946,170.62,N,N/A,N,N/A
Pendle Borough Council,Operational Services,Agency Staff,Emp : Agency Wages,1004,PENDLE PERSONNEL LTD,A0002198, 12/01/2017,OPS0276664,75.07,N,N/A,N,N/A
Pendle Borough Council,Operational Services,Agency Staff,Emp : Agency Wages,1004,PENDLE PERSONNEL LTD,A0002198, 26/01/2017,OPS0276946,85.31,N,N/A,N,N/A
Pendle Borough Council,Operational Services,Agency Staff,Emp : Agency Wages,1004,PENDLE PERSONNEL LTD,A0002198, 05/01/2017,OPS0276529,220.22,N,N/A,N,N/A
Pendle Borough Council,Operational Services,Agency Staff,Emp : Agency Wages,1004,PENDLE PERSONNEL LTD,A0002198, 05/01/2017,OPS0276603,235,N,N/A,N,N/A
Pendle Borough Council,Operational Services,Agency Staff,Emp : Agency Wages,1004,PENDLE PERSONNEL LTD,A0002198, 19/01/2017,OPS0276879,255,N,N/A,N,N/A
Pendle Borough Council,Operational Services,Agency Staff,Emp : Agency Wages,1004,PENDLE PERSONNEL LTD,A0002198, 12/01/2017,OPS0276669,270,N,N/A,N,N/A
Pendle Borough Council,Operational Services,Agency Staff,Emp : Agency Wages,1004,PENDLE PERSONNEL LTD,A0002198, 05/01/2017,OPS0276530,370,N,N/A,N,N/A
Pendle Borough Council,Operational Services,Agency Staff,Emp : Agency Wages,1004,PENDLE PERSONNEL LTD,A0002198, 26/01/2017,OPS0277039,370,N,N/A,N,N/A
Pendle Borough Council,Operational Services,Agency Staff,Emp : Agency Wages,1004,PENDLE PERSONNEL LTD,A0002198, 12/01/2017,OPS0276752,77.93,N,N/A,N,N/A
Pendle Borough Council,Operational Services,Agency Staff,Emp : Agency Wages,1004,PENDLE PERSONNEL LTD,A0002198, 05/01/2017,OPS0276529,150.15,N,N/A,N,N/A
Pendle Borough Council,Operational Services,Agency Staff,Emp : Agency Wages,1004,PENDLE PERSONNEL LTD,A0002198, 26/01/2017,OPS0276946,170.62,N,N/A,N,N/A
Pendle Borough Council,Operational Services,Agency Staff,Emp : Agency Wages,1004,PENDLE PERSONNEL LTD,A0002198, 12/01/2017,OPS0276664,225.23,N,N/A,N,N/A
Pendle Borough Council,Parks & Recreation Services,Agency Staff,Emp : Salaries & Wages,1020,PENDLE PERSONNEL LTD,A0002198, 05/01/2017,PCO0276616,281.3,N,N/A,N,N/A
Pendle Borough Council,Parks & Recreation Services,Agency Staff,Emp : Salaries & Wages,1020,PENDLE PERSONNEL LTD,A0002198, 26/01/2017,PCO0276972,426.8,N,N/A,N,N/A
Pendle Borough Council,Democratic & Legal Services,Supplies and Services,Postages,4501,ROYAL MAIL GROUP LIMITED,A0002281, 26/01/2017,DAL0276949,41.48,N,N/A,N,N/A
Pendle Borough Council,Democratic & Legal Services,Supplies and Services,Postages,4501,ROYAL MAIL GROUP LIMITED,A0002281, 19/01/2017,DAL0276912,142.06,N,N/A,N,N/A
Pendle Borough Council,Democratic & Legal Services,Supplies and Services,Postages,4501,ROYAL MAIL GROUP LIMITED,A0002281, 19/01/2017,DAL0276912,194.78,N,N/A,N,N/A
Pendle Borough Council,Democratic & Legal Services,Supplies and Services,Postages,4501,ROYAL MAIL GROUP LIMITED,A0002281, 26/01/2017,DAL0276949,346.73,N,N/A,N,N/A
Pendle Borough Council,Democratic & Legal Services,Supplies and Services,Postages,4501,ROYAL MAIL GROUP LIMITED,A0002281, 26/01/2017,DAL0276949,17.83,N,N/A,N,N/A
Pendle Borough Council,Democratic & Legal Services,Supplies and Services,Postages,4501,ROYAL MAIL GROUP LIMITED,A0002281, 19/01/2017,DAL0276912,103.5,N,N/A,N,N/A
Pendle Borough Council,Democratic & Legal Services,Supplies and Services,Postages,4501,ROYAL MAIL GROUP LIMITED,A0002281, 26/01/2017,DAL0276949,23.84,N,N/A,N,N/A
Pendle Borough Council,Democratic & Legal Services,Supplies and Services,Postages,4501,ROYAL MAIL GROUP LIMITED,A0002281, 26/01/2017,DAL0276949,9.3,N,N/A,N,N/A
Pendle Borough Council,Democratic & Legal Services,Supplies and Services,Postages,4501,ROYAL MAIL GROUP LIMITED,A0002281, 26/01/2017,DAL0276949,2.57,N,N/A,N,N/A
Pendle Borough Council,Democratic & Legal Services,Supplies and Services,Postages,4501,ROYAL MAIL GROUP LIMITED,A0002281, 26/01/2017,DAL0276949,43.78,N,N/A,N,N/A
Pendle Borough Council,Democratic & Legal Services,Supplies and Services,Postages,4501,ROYAL MAIL GROUP LIMITED,A0002281, 12/01/2017,DAL0276692,108,N,N/A,N,N/A
Pendle Borough Council,Democratic & Legal Services,Supplies and Services,Postages,4501,ROYAL MAIL GROUP LIMITED,A0002281, 26/01/2017,DAL0276949,238.15,N,N/A,N,N/A
Pendle Borough Council,Democratic & Legal Services,Supplies and Services,Postages,4501,ROYAL MAIL GROUP LIMITED,A0002281, 12/01/2017,DAL0276692,108,N,N/A,N,N/A
Pendle Borough Council,Democratic & Legal Services,Supplies and Services,Postages,4501,ROYAL MAIL GROUP LIMITED,A0002281, 26/01/2017,DAL0276949,36.82,N,N/A,N,N/A
Pendle Borough Council,Democratic & Legal Services,Supplies and Services,Postages,4501,ROYAL MAIL GROUP LIMITED,A0002281, 26/01/2017,DAL0276949,42.39,N,N/A,N,N/A
Pendle Borough Council,Democratic & Legal Services,Supplies and Services,Postages,4501,ROYAL MAIL GROUP LIMITED,A0002281, 26/01/2017,DAL0276949,6.55,N,N/A,N,N/A
Pendle Borough Council,Democratic & Legal Services,Supplies and Services,Postages,4501,ROYAL MAIL GROUP LIMITED,A0002281, 26/01/2017,DAL0276949,222.04,N,N/A,N,N/A
Pendle Borough Council,Democratic & Legal Services,Supplies and Services,Postages,4501,ROYAL MAIL GROUP LIMITED,A0002281, 26/01/2017,DAL0276949,94.92,N,N/A,N,N/A
Pendle Borough Council,Democratic & Legal Services,Supplies and Services,Postages,4501,ROYAL MAIL GROUP LIMITED,A0002281, 19/01/2017,DAL0276827,299.92,N,N/A,N,N/A
Pendle Borough Council,Operational Services,Transport Related Expense,Tprt : Annual Hire Charge,3601,STANLEY BROTHERS (TIPPERS) LTD,A0002422, 26/01/2017,OPS0277035,2100,N,N/A,N,N/A
Pendle Borough Council,Parks & Recreation Services,Transport Related Expense,Tprt : Repairs : General,3105,SPALDINGS (UK) LTD,A0002537, 05/01/2017,PCO0276614,30.5,N,N/A,N,N/A
Pendle Borough Council,Parks & Recreation Services,Transport Related Expense,Tprt : Repairs : General,3105,SPALDINGS (UK) LTD,A0002537, 05/01/2017,PCO0276614,75,N,N/A,N,N/A
Pendle Borough Council,Financial Services,Support Services,Bank Charges,7201,G4S CASH SOLUTIONS (UK) LIMITED,A0002616, 19/01/2017,AAS0276874,184.27,N,N/A,N,N/A
Pendle Borough Council,Engineering & Special Projects,Premises Related Expense,Bldgs : R & M : Day To Day,2001,T & F STEEL DESIGNS LTD,A0002627, 19/01/2017,HED0276810,25,N,N/A,N,N/A
Pendle Borough Council,Engineering & Special Projects,Premises Related Expense,Bldgs : R & M : Day To Day,2001,T & F STEEL DESIGNS LTD,A0002627, 19/01/2017,HED0276810,100,N,N/A,N,N/A
Pendle Borough Council,Engineering & Special Projects,Premises Related Expense,Bldgs : R & M : Day To Day,2001,T & F STEEL DESIGNS LTD,A0002627, 19/01/2017,HED0276811,25,N,N/A,N,N/A
Pendle Borough Council,Engineering & Special Projects,Premises Related Expense,Bldgs : R & M : Day To Day,2001,T & F STEEL DESIGNS LTD,A0002627, 19/01/2017,HED0276811,100,N,N/A,N,N/A
Pendle Borough Council,Engineering & Special Projects,Premises Related Expense,Grounds : R & M : Day to Day : Routine,2101,T & F STEEL DESIGNS LTD,A0002627, 05/01/2017,HED0276523,190,N,N/A,N,N/A
Pendle Borough Council,Engineering & Special Projects,Premises Related Expense,Grounds : R & M : Day to Day : Routine,2101,T & F STEEL DESIGNS LTD,A0002627, 05/01/2017,HED0276523,330,N,N/A,N,N/A
Pendle Borough Council,Engineering & Special Projects,Supplies and Services,Miscellaneous : Other,4707,T & F STEEL DESIGNS LTD,A0002627, 05/01/2017,HED0276522,15,N,N/A,N,N/A
Pendle Borough Council,Engineering & Special Projects,Supplies and Services,Miscellaneous : Other,4707,T & F STEEL DESIGNS LTD,A0002627, 05/01/2017,HED0276522,40,N,N/A,N,N/A
Pendle Borough Council,Engineering & Special Projects,Capital Costs,Capital : Payments,CD14,T & F STEEL DESIGNS LTD,A0002627, 05/01/2017,HED0276523,190,N,N/A,N,N/A
Pendle Borough Council,Engineering & Special Projects,Capital Costs,Capital : Payments,CD14,T & F STEEL DESIGNS LTD,A0002627, 05/01/2017,HED0276523,330,N,N/A,N,N/A
Pendle Borough Council,Engineering & Special Projects,Supplies and Services,Seminars etc All Costs,4601,LEXIS NEXIS,A0002634, 05/01/2017,HED0276562,397,N,N/A,N,N/A
Pendle Borough Council,Planning & Building Control,Supplies and Services,Reference Books Acts,4304,IHS (GLOBAL) LIMITED,A0002657, 12/01/2017,PBC0276709,2387.87,N,N/A,N,N/A
Pendle Borough Council,Environmental Health Services,Supplies and Services,Other Expenses,4705,JOHNSONS TEXICARE LTD,A0002665, 05/01/2017,ENV0276567,78.8,N,N/A,N,N/A
Pendle Borough Council,Parks & Recreation Services,Premises Related Expense,Grounds : R & M : Day to Day : Routine,2101,TRAVIS PERKINS TRADING CO LTD,A0002709, 05/01/2017,PCO0276540,22.44,N,N/A,N,N/A
Pendle Borough Council,Parks & Recreation Services,Premises Related Expense,Grounds : R & M : Day to Day : Routine,2101,TRAVIS PERKINS TRADING CO LTD,A0002709, 05/01/2017,PCO0276611,30.24,N,N/A,N,N/A
Pendle Borough Council,Parks & Recreation Services,Premises Related Expense,Grounds : R & M : Day to Day : Routine,2101,TRAVIS PERKINS TRADING CO LTD,A0002709, 05/01/2017,PCO0276611,42,N,N/A,N,N/A
Pendle Borough Council,Parks & Recreation Services,Premises Related Expense,Grounds : R & M : Day to Day : Routine,2101,TRAVIS PERKINS TRADING CO LTD,A0002709, 05/01/2017,PCO0276611,99.8,N,N/A,N,N/A
Pendle Borough Council,Parks & Recreation Services,Premises Related Expense,Grounds : R & M : Day to Day : Routine,2101,TRAVIS PERKINS TRADING CO LTD,A0002709, 26/01/2017,PCO0276970,4.05,N,N/A,N,N/A
Pendle Borough Council,Parks & Recreation Services,Premises Related Expense,Grounds : R & M : Day to Day : Routine,2101,TRAVIS PERKINS TRADING CO LTD,A0002709, 26/01/2017,PCO0276970,5.7,N,N/A,N,N/A
Pendle Borough Council,Parks & Recreation Services,Premises Related Expense,Grounds : R & M : Day to Day : Routine,2101,TRAVIS PERKINS TRADING CO LTD,A0002709, 26/01/2017,PCO0276970,46.4,N,N/A,N,N/A
Pendle Borough Council,Parks & Recreation Services,Premises Related Expense,Grounds : R & M : Day to Day : Routine,2101,TRAVIS PERKINS TRADING CO LTD,A0002709, 26/01/2017,PCO0276970,106.2,N,N/A,N,N/A
Pendle Borough Council,Economic Development & Tourism,Supplies and Services,Miscellaneous : Other,4707,TRAVIS PERKINS TRADING CO LTD,A0002709, 12/01/2017,REG0276676,22.8,N,N/A,N,N/A
Pendle Borough Council,Economic Development & Tourism,Supplies and Services,Miscellaneous : Other,4707,TRAVIS PERKINS TRADING CO LTD,A0002709, 12/01/2017,REG0276656,37.26,N,N/A,N,N/A
Pendle Borough Council,Economic Development & Tourism,Supplies and Services,Miscellaneous : Other,4707,TRAVIS PERKINS TRADING CO LTD,A0002709, 12/01/2017,REG0276668,37.26,N,N/A,N,N/A
Pendle Borough Council,Economic Development & Tourism,Supplies and Services,Miscellaneous : Other,4707,TRAVIS PERKINS TRADING CO LTD,A0002709, 12/01/2017,REG0276673,37.26,N,N/A,N,N/A
Pendle Borough Council,Economic Development & Tourism,Supplies and Services,Miscellaneous : Other,4707,TRAVIS PERKINS TRADING CO LTD,A0002709, 12/01/2017,REG0276659,37.93,N,N/A,N,N/A
Pendle Borough Council,Economic Development & Tourism,Supplies and Services,Miscellaneous : Other,4707,TRAVIS PERKINS TRADING CO LTD,A0002709, 12/01/2017,REG0276666,51.38,N,N/A,N,N/A
Pendle Borough Council,Economic Development & Tourism,Supplies and Services,Miscellaneous : Other,4707,TRAVIS PERKINS TRADING CO LTD,A0002709, 12/01/2017,REG0276671,57.26,N,N/A,N,N/A
Pendle Borough Council,Economic Development & Tourism,Supplies and Services,Miscellaneous : Other,4707,TRAVIS PERKINS TRADING CO LTD,A0002709, 12/01/2017,REG0276658,61.51,N,N/A,N,N/A
Pendle Borough Council,Economic Development & Tourism,Supplies and Services,Miscellaneous : Other,4707,TRAVIS PERKINS TRADING CO LTD,A0002709, 12/01/2017,REG0276660,61.51,N,N/A,N,N/A
Pendle Borough Council,Economic Development & Tourism,Supplies and Services,Miscellaneous : Other,4707,TRAVIS PERKINS TRADING CO LTD,A0002709, 12/01/2017,REG0276675,61.51,N,N/A,N,N/A
Pendle Borough Council,Economic Development & Tourism,Supplies and Services,Miscellaneous : Other,4707,TRAVIS PERKINS TRADING CO LTD,A0002709, 12/01/2017,REG0276662,84.42,N,N/A,N,N/A
Pendle Borough Council,Democratic & Legal Services,Supplies and Services,Postages,4501,TRISTAR PRINTERS LTD,A0002731, 05/01/2017,DAL0276560,146.02,N,N/A,N,N/A
Pendle Borough Council,Democratic & Legal Services,Supplies and Services,Postages,4501,TRISTAR PRINTERS LTD,A0002731, 05/01/2017,DAL0276560,146.03,N,N/A,N,N/A
Pendle Borough Council,Democratic & Legal Services,Supplies and Services,Postages,4501,TRISTAR PRINTERS LTD,A0002731, 05/01/2017,DAL0276560,64.9,N,N/A,N,N/A
Pendle Borough Council,Democratic & Legal Services,Supplies and Services,Postages,4501,TRISTAR PRINTERS LTD,A0002731, 05/01/2017,DAL0276560,292.05,N,N/A,N,N/A
Pendle Borough Council,Operational Services,Agency Staff,Emp : Agency Wages,1004,DHRB LIMITED T/A DRIVER HIRE (45680),A0003556, 12/01/2017,OPS0276663,66.75,N,N/A,N,N/A
Pendle Borough Council,Operational Services,Agency Staff,Emp : Agency Wages,1004,DHRB LIMITED T/A DRIVER HIRE (45680),A0003556, 12/01/2017,OPS0276751,126.82,N,N/A,N,N/A
Pendle Borough Council,Operational Services,Agency Staff,Emp : Agency Wages,1004,DHRB LIMITED T/A DRIVER HIRE (45680),A0003556, 26/01/2017,OPS0276944,276.97,N,N/A,N,N/A
Pendle Borough Council,Operational Services,Agency Staff,Emp : Agency Wages,1004,DHRB LIMITED T/A DRIVER HIRE (45680),A0003556, 12/01/2017,OPS0276663,66.75,N,N/A,N,N/A
Pendle Borough Council,Operational Services,Agency Staff,Emp : Agency Wages,1004,DHRB LIMITED T/A DRIVER HIRE (45680),A0003556, 26/01/2017,OPS0276944,266.96,N,N/A,N,N/A
Pendle Borough Council,Operational Services,Agency Staff,Emp : Agency Wages,1004,DHRB LIMITED T/A DRIVER HIRE (45680),A0003556, 12/01/2017,OPS0276751,427.2,N,N/A,N,N/A
Pendle Borough Council,Engineering & Special Projects,Capital Costs,Capital : Payments,CD14,ST PAULS C E  PRIMARY SCHOOL,A0005899, 19/01/2017,HED0276908,250,N,N/A,N,N/A
Pendle Borough Council,Property Services,Premises Related Expense,Bldgs : R & M : Day To Day,2001,FAST GLASS GLAZING LIMITED,A0005903, 12/01/2017,EST0276777,130,N,N/A,N,N/A
Pendle Borough Council,Democratic & Legal Services,Indirect Employee Expenses,Staff Refreshments,1261,PHILIP SANDERSON,A0006611, 12/01/2017,DAL0276694,9.5,N,N/A,N,N/A
Pendle Borough Council,Democratic & Legal Services,Indirect Employee Expenses,Staff Refreshments,1261,PHILIP SANDERSON,A0006611, 12/01/2017,DAL0276694,7.03,N,N/A,N,N/A
Pendle Borough Council,Democratic & Legal Services,Supplies and Services,Hospitality,4611,PHILIP SANDERSON,A0006611, 12/01/2017,DAL0276694,18.7,N,N/A,N,N/A
Pendle Borough Council,Property Services,Indirect Employee Expenses,Staff Refreshments,1261,VENDA VALET (MACHINES) LTD,A0009649, 19/01/2017,EST0276854,216.67,N,N/A,N,N/A
Pendle Borough Council,Chief Executives Policy Unit,Supplies and Services,Other Expenses,4705,POLICE & CRIME COMMISSIONER FOR LANCASHIRE,A0009816, 12/01/2017,COR0276606,16500,N,N/A,N,N/A
Pendle Borough Council,Parks & Recreation Services,Premises Related Expense,Grounds : R & M : Day to Day : Routine,2101,LHT ENTERPRISES LIMITED,A0010288, 26/01/2017,PCO0276973,62.45,N,N/A,N,N/A
Pendle Borough Council,Human Resources,Supplies and Services,Seminars etc All Costs,4601,PENDLE LEISURE LTD,A0012961, 12/01/2017,PER0276785,50,N,N/A,N,N/A
Pendle Borough Council,Democratic & Legal Services,Supplies and Services,Seminars etc All Costs,4601,PENDLE LEISURE LTD,A0012961, 12/01/2017,DAL0276696,60,N,N/A,N,N/A
Pendle Borough Council,Financial Services,Capital Costs,Capital : Payments,CD14,PENDLE LEISURE LTD,A0012961, 11/01/2017,AAS0276802,1100000,N,N/A,N,N/A
Pendle Borough Council,Parks & Recreation Services,Premises Related Expense,Grounds : R & M : Day to Day : Routine,2101,BROWNS ENGINEERING SERVICES,A0012980, 19/01/2017,PCO0276902,114,N,N/A,N,N/A
Pendle Borough Council,Parks & Recreation Services,Premises Related Expense,Grounds : R & M : Day to Day : Routine,2101,BROWNS ENGINEERING SERVICES,A0012980, 19/01/2017,PCO0276901,120,N,N/A,N,N/A
Pendle Borough Council,Parks & Recreation Services,Premises Related Expense,Grounds : R & M : Day to Day : Routine,2101,BROWNS ENGINEERING SERVICES,A0012980, 19/01/2017,PCO0276902,210,N,N/A,N,N/A
Pendle Borough Council,Property Services,Premises Related Expense,Bldgs : R & M : Day To Day,2001,LANDSCAPE ENGINEERING LTD,A0013135, 12/01/2017,EST0276781,1200,N,N/A,N,N/A
Pendle Borough Council,Human Resources,Indirect Employee Expenses,Long Service Awards,1235,REDACTED - PERSONAL DATA,A0015225, 26/01/2017,PER0277000,214,N,N/A,N,N/A
Pendle Borough Council,Operational Services,Supplies and Services,Sub-Contractors,4007,ORCHARD RECYCLING SERVICE,A0015803, 12/01/2017,OPS0276729,800.1,N,N/A,N,N/A
Pendle Borough Council,Operational Services,Supplies and Services,Sub-Contractors,4007,ORCHARD RECYCLING SERVICE,A0015803, 05/01/2017,OPS0276595,1234.8,N,N/A,N,N/A
Pendle Borough Council,Operational Services,Supplies and Services,Sub-Contractors,4007,ORCHARD RECYCLING SERVICE,A0015803, 26/01/2017,OPS0276981,1537.2,N,N/A,N,N/A
Pendle Borough Council,Operational Services,Supplies and Services,Sub-Contractors,4007,ORCHARD RECYCLING SERVICE,A0015803, 19/01/2017,OPS0276864,1556.1,N,N/A,N,N/A
Pendle Borough Council,Operational Services,Supplies and Services,Miscellaneous : Other,4707,ORCHARD RECYCLING SERVICE,A0015803, 05/01/2017,OPS0276605,40.75,N,N/A,N,N/A
Pendle Borough Council,Operational Services,Supplies and Services,Miscellaneous : Other,4707,ORCHARD RECYCLING SERVICE,A0015803, 26/01/2017,OPS0277037,73.75,N,N/A,N,N/A
Pendle Borough Council,Operational Services,Supplies and Services,Miscellaneous : Other,4707,ORCHARD RECYCLING SERVICE,A0015803, 19/01/2017,OPS0276819,75.75,N,N/A,N,N/A
Pendle Borough Council,Operational Services,Supplies and Services,Miscellaneous : Other,4707,ORCHARD RECYCLING SERVICE,A0015803, 19/01/2017,OPS0276818,117.25,N,N/A,N,N/A
Pendle Borough Council,Operational Services,Agency Costs,Fast Action Response,5009,ORCHARD RECYCLING SERVICE,A0015803, 05/01/2017,OPS0276605,40.75,N,N/A,N,N/A
Pendle Borough Council,Operational Services,Agency Costs,Fast Action Response,5009,ORCHARD RECYCLING SERVICE,A0015803, 26/01/2017,OPS0277037,73.75,N,N/A,N,N/A
Pendle Borough Council,Operational Services,Agency Costs,Fast Action Response,5009,ORCHARD RECYCLING SERVICE,A0015803, 19/01/2017,OPS0276819,75.75,N,N/A,N,N/A
Pendle Borough Council,Operational Services,Agency Costs,Fast Action Response,5009,ORCHARD RECYCLING SERVICE,A0015803, 19/01/2017,OPS0276818,117.25,N,N/A,N,N/A
Pendle Borough Council,Engineering & Special Projects,Supplies and Services,Other Expenses,4705,MAYORESS CHARITY COMMITTEE,A0015905, 26/01/2017,HED0276985,439,N,N/A,N,N/A
Pendle Borough Council,Parks & Recreation Services,Transport Related Expense,Tprt : Pooled Transport,3401,DVLA SWANSEA,A0016348, 12/01/2017,PCO0276619,19,N,N/A,N,N/A
Pendle Borough Council,Parks & Recreation Services,Transport Related Expense,Tprt : Repairs : General,3105,WALTON SUMMIT TRUCK  CENTRE LTD,A0020983, 26/01/2017,PCO0276966,32.62,N,N/A,N,N/A
Pendle Borough Council,Parks & Recreation Services,Transport Related Expense,Tprt : Repairs : General,3105,WALTON SUMMIT TRUCK  CENTRE LTD,A0020983, 19/01/2017,PCO0276892,102.29,N,N/A,N,N/A
Pendle Borough Council,Operational Services,Agency Costs,Refuse Collection DLO,5005,SAANRO INTERNATIONAL LTD,A0021480, 19/01/2017,OPS0276866,540,N,N/A,N,N/A
Pendle Borough Council,Operational Services,Supplies and Services,Other Expenses,4705,ASPEN VALLEY KENNELS & CATTERY,A0022106, 19/01/2017,OPS0276826,670,N,N/A,N,N/A
Pendle Borough Council,Financial Services,Premises Related Expense,Electricity,2203,E.ON,A0023073, 12/01/2017,AAS0276725,2.46,N,N/A,N,N/A
Pendle Borough Council,Property Services,Premises Related Expense,Electricity,2203,E.ON,A0023073, 05/01/2017,EST0276577,53.65,N,N/A,N,N/A
Pendle Borough Council,Property Services,Premises Related Expense,Electricity,2203,E.ON,A0023073, 05/01/2017,EST0276573,0.18,N,N/A,N,N/A
Pendle Borough Council,Property Services,Premises Related Expense,Electricity,2203,E.ON,A0023073, 05/01/2017,EST0276571,0.19,N,N/A,N,N/A
Pendle Borough Council,Property Services,Premises Related Expense,Electricity,2203,E.ON,A0023073, 26/01/2017,EST0276990,0.19,N,N/A,N,N/A
Pendle Borough Council,Housing Regeneration Services,Transfer Payments,Storage & Homelessness prevention,6104,HENDON MILL CO LTD,A0024924, 26/01/2017,HMR0276954,145.83,N,N/A,N,N/A
Pendle Borough Council,Financial Services,Transport Related Expense,Tprt : Annual Hire Charge,3601,ALD AUTOMOTIVES,A0025555, 24/01/2017,AAS0277168,244.87,N,N/A,N,N/A
Pendle Borough Council,Financial Services,Premises Related Expense,Service Charge,2702,BARNFIELD INVESTMENT PROPERTIES LTD,A0026595, 05/01/2017,AAS0276593,709.75,N,N/A,N,N/A
Pendle Borough Council,Engineering & Special Projects,Premises Related Expense,Bldgs : R & M : Day To Day,2001,LITE,A0040032, 19/01/2017,HED0276816,379,N,N/A,N,N/A
Pendle Borough Council,Engineering & Special Projects,Premises Related Expense,Grounds : R & M : Day to Day : Routine,2101,LITE,A0040032, 19/01/2017,HED0276907,196,N,N/A,N,N/A
Pendle Borough Council,Property Services,Premises Related Expense,Bldgs : R & M : Day To Day,2001,PENNINE FIRE & SAFETY LTD,A0040931, 05/01/2017,EST0276580,96.9,N,N/A,N,N/A
Pendle Borough Council,Democratic & Legal Services,Supplies and Services,Printing & Stationery,4301,ELECTORAL REFORM SERVICES,A0041321, 12/01/2017,DAL0276693,55.81,N,N/A,N,N/A
Pendle Borough Council,Democratic & Legal Services,Supplies and Services,Printing & Stationery,4301,ELECTORAL REFORM SERVICES,A0041321, 19/01/2017,DAL0276828,2115.24,N,N/A,N,N/A
Pendle Borough Council,Democratic & Legal Services,Supplies and Services,Postages,4501,ELECTORAL REFORM SERVICES,A0041321, 26/01/2017,DAL0276948,81.83,N,N/A,N,N/A
Pendle Borough Council,Democratic & Legal Services,Supplies and Services,Postages,4501,ELECTORAL REFORM SERVICES,A0041321, 12/01/2017,DAL0276693,148.16,N,N/A,N,N/A
Pendle Borough Council,Democratic & Legal Services,Supplies and Services,Postages,4501,ELECTORAL REFORM SERVICES,A0041321, 19/01/2017,DAL0276828,1841.59,N,N/A,N,N/A
Pendle Borough Council,Engineering & Special Projects,Premises Related Expense,Grounds : R & M : Day to Day : Routine,2101,ANDIDRAIN LIMITED,A0041404, 05/01/2017,HED0276555,1156.1,N,N/A,N,N/A
Pendle Borough Council,Engineering & Special Projects,Premises Related Expense,Grounds : R & M : Day to Day : Routine,2101,ANDIDRAIN LIMITED,A0041404, 05/01/2017,HED0276556,2250,N,N/A,N,N/A
Pendle Borough Council,Economic Development & Tourism,Supplies and Services,Grants/Contributions,4739,CARRADICE OF NELSON LIMITED,A0041549, 05/01/2017,REG0276534,650,N,N/A,N,N/A
Pendle Borough Council,Parks & Recreation Services,Transport Related Expense,Tprt : Repairs : General,3105,COUNTRYWIDE COURIERS,A0042116, 05/01/2017,PCO0276625,27,N,N/A,N,N/A
Pendle Borough Council,Property Services,Premises Related Expense,Bldgs : R & M : Day To Day,2001,PROTEC FIRE DETECTION PLC,A0042311, 26/01/2017,EST0276993,17.66,N,N/A,N,N/A
Pendle Borough Council,Economic Development & Tourism,Supplies and Services,Other Expenses,4705,ASSOCIATION OF TOWN CENTRE MANAGEMENT,A0042926, 26/01/2017,REG0277013,625,N,N/A,N,N/A
Pendle Borough Council,Chief Executives Policy Unit,Supplies and Services,Other Expenses,4705,BT REDCARE,A0043418, 19/01/2017,COR0276914,6309.07,N,N/A,N,N/A
Pendle Borough Council,Chief Executives Policy Unit,Supplies and Services,Other Expenses,4705,OFFICE OF COMMUNICATIONS,A0043419, 05/01/2017,COR0276548,100,N,N/A,N,N/A
Pendle Borough Council,Chief Executives Policy Unit,Supplies and Services,Other Expenses,4705,OFFICE OF COMMUNICATIONS,A0043419, 19/01/2017,COR0276794,100,N,N/A,N,N/A
Pendle Borough Council,Parks & Recreation Services,Transport Related Expense,Tprt : Repairs : General,3105,M J RUSHTON,A0043864, 26/01/2017,PCO0276968,75,N,N/A,N,N/A
Pendle Borough Council,Operational Services,Supplies and Services,Sub-Contractors,4007,S M SHEPHERD BUILDING CONTRACTORS,A0044037, 05/01/2017,OPS0276608,40,N,N/A,N,N/A
Pendle Borough Council,Operational Services,Supplies and Services,Sub-Contractors,4007,S M SHEPHERD BUILDING CONTRACTORS,A0044037, 05/01/2017,OPS0276608,60,N,N/A,N,N/A
Pendle Borough Council,Operational Services,Supplies and Services,Sub-Contractors,4007,S M SHEPHERD BUILDING CONTRACTORS,A0044037, 19/01/2017,OPS0276833,70,N,N/A,N,N/A
Pendle Borough Council,Operational Services,Supplies and Services,Sub-Contractors,4007,S M SHEPHERD BUILDING CONTRACTORS,A0044037, 19/01/2017,OPS0276833,70,N,N/A,N,N/A
Pendle Borough Council,Operational Services,Supplies and Services,Sub-Contractors,4007,S M SHEPHERD BUILDING CONTRACTORS,A0044037, 26/01/2017,OPS0277038,70,N,N/A,N,N/A
Pendle Borough Council,Operational Services,Supplies and Services,Sub-Contractors,4007,S M SHEPHERD BUILDING CONTRACTORS,A0044037, 26/01/2017,OPS0277038,70,N,N/A,N,N/A
Pendle Borough Council,Operational Services,,Paid in the Year,PD03,S M SHEPHERD BUILDING CONTRACTORS,A0044037, 19/01/2017,OPS0276832,160,N,N/A,N,N/A
Pendle Borough Council,Operational Services,,Paid in the Year,PD03,S M SHEPHERD BUILDING CONTRACTORS,A0044037, 19/01/2017,OPS0276832,200,N,N/A,N,N/A
Pendle Borough Council,Financial Services,Premises Related Expense,Electricity,2203,E.ON UK PLC,A0044040, 12/01/2017,AAS0276750,63.15,N,N/A,N,N/A
Pendle Borough Council,Property Services,Premises Related Expense,Electricity,2203,E.ON UK PLC,A0044040, 12/01/2017,EST0276762,292.95,N,N/A,N,N/A
Pendle Borough Council,Human Resources,Indirect Employee Expenses,Training,1211,UNIVERSITY OF BRADFORD,A0045094, 12/01/2017,PER0276788,2700,N,N/A,N,N/A
Pendle Borough Council,Operational Services,Transport Related Expense,Tprt : Repairs : General,3105,GO PLANT LIMITED,A0045105, 12/01/2017,OPS0276740,327.08,N,N/A,N,N/A
Pendle Borough Council,Operational Services,Transport Related Expense,Tprt : Repairs : General,3105,GO PLANT LIMITED,A0045105, 12/01/2017,OPS0276746,647.21,N,N/A,N,N/A
Pendle Borough Council,Operational Services,Transport Related Expense,Tprt : Repairs : General,3105,GO PLANT LIMITED,A0045105, 12/01/2017,OPS0276733,2588.82,N,N/A,N,N/A
Pendle Borough Council,Operational Services,Transport Related Expense,Tprt : Repairs : General,3105,GO PLANT LIMITED,A0045105, 12/01/2017,OPS0276745,28.1,N,N/A,N,N/A
Pendle Borough Council,Operational Services,Transport Related Expense,Tprt : Repairs : General,3105,GO PLANT LIMITED,A0045105, 12/01/2017,OPS0276738,503,N,N/A,N,N/A
Pendle Borough Council,Operational Services,Transport Related Expense,Tprt : Repairs : General,3105,GO PLANT LIMITED,A0045105, 12/01/2017,OPS0276739,199.4,N,N/A,N,N/A
Pendle Borough Council,Operational Services,Transport Related Expense,Tprt : Repairs : General,3105,GO PLANT LIMITED,A0045105, 12/01/2017,OPS0276741,79.5,N,N/A,N,N/A
Pendle Borough Council,Operational Services,Transport Related Expense,Tprt : Repairs : General,3105,GO PLANT LIMITED,A0045105, 12/01/2017,OPS0276736,23.13,N,N/A,N,N/A
Pendle Borough Council,Parks & Recreation Services,Transport Related Expense,Tprt : Repairs : General,3105,GO PLANT LIMITED,A0045105, 12/01/2017,PCO0276765,600,N,N/A,N,N/A
Pendle Borough Council,Operational Services,Transport Related Expense,Tprt : Annual Hire Charge,3601,GO PLANT LIMITED,A0045105, 12/01/2017,OPS0276742,100,N,N/A,N,N/A
Pendle Borough Council,Operational Services,Transport Related Expense,Tprt : Annual Hire Charge,3601,GO PLANT LIMITED,A0045105, 12/01/2017,OPS0276730,350,N,N/A,N,N/A
Pendle Borough Council,Operational Services,Transport Related Expense,Tprt : Annual Hire Charge,3601,GO PLANT LIMITED,A0045105, 12/01/2017,OPS0276731,350,N,N/A,N,N/A
Pendle Borough Council,Operational Services,Transport Related Expense,Tprt : Annual Hire Charge,3601,GO PLANT LIMITED,A0045105, 12/01/2017,OPS0276732,350,N,N/A,N,N/A
Pendle Borough Council,Operational Services,Transport Related Expense,Tprt : Annual Hire Charge,3601,GO PLANT LIMITED,A0045105, 12/01/2017,OPS0276735,560,N,N/A,N,N/A
Pendle Borough Council,Operational Services,Transport Related Expense,Tprt : Annual Hire Charge,3601,GO PLANT LIMITED,A0045105, 12/01/2017,OPS0276732,850,N,N/A,N,N/A
Pendle Borough Council,Operational Services,Transport Related Expense,Tprt : Annual Hire Charge,3601,GO PLANT LIMITED,A0045105, 12/01/2017,OPS0276730,875,N,N/A,N,N/A
Pendle Borough Council,Operational Services,Transport Related Expense,Tprt : Annual Hire Charge,3601,GO PLANT LIMITED,A0045105, 12/01/2017,OPS0276731,875,N,N/A,N,N/A
Pendle Borough Council,Operational Services,Transport Related Expense,Tprt : Annual Hire Charge,3601,GO PLANT LIMITED,A0045105, 12/01/2017,OPS0276735,900,N,N/A,N,N/A
Pendle Borough Council,Parks & Recreation Services,Transport Related Expense,Tprt : Annual Hire Charge,3601,GO PLANT LIMITED,A0045105, 05/01/2017,PCO0276539,600,N,N/A,N,N/A
Pendle Borough Council,Parks & Recreation Services,Transport Related Expense,Tprt : Annual Hire Charge,3601,GO PLANT LIMITED,A0045105, 19/01/2017,PCO0276895,1200,N,N/A,N,N/A
Pendle Borough Council,Operational Services,Transport Related Expense,Tprt : Annual Hire Charge,3601,GO PLANT LIMITED,A0045105, 26/01/2017,OPS0276982,66014.79,N,N/A,N,N/A
Pendle Borough Council,Operational Services,Transport Related Expense,Tprt : Annual Hire Charge,3601,GO PLANT LIMITED,A0045105, 26/01/2017,OPS0276983,66014.79,N,N/A,N,N/A
Pendle Borough Council,Financial Services,Premises Related Expense,Bldgs : R & M : Day To Day,2001,PLUSNET TECHNOLOGIES LIMITED,A0045646, 04/01/2017,AAS0276928,15,N,N/A,N,N/A
Pendle Borough Council,Financial Services,Premises Related Expense,Bldgs : R & M : Day To Day,2001,PLUSNET TECHNOLOGIES LIMITED,A0045646, 31/01/2017,AAS0277170,15,N,N/A,N,N/A
Pendle Borough Council,Democratic & Legal Services,Supplies and Services,Seminars etc All Costs,4601,JADU LIMITED,A0045909, 19/01/2017,DAL0276917,3525,N,N/A,N,N/A
Pendle Borough Council,Financial Services,Indirect Employee Expenses,Recruitment,1221,BARCLAYCARD COMMERCIAL,A0045954, 23/01/2017,AAS0276976,290,N,N/A,Y,N/A
Pendle Borough Council,Financial Services,Supplies and Services,EFM : Other Equipment,4003,BARCLAYCARD COMMERCIAL,A0045954, 23/01/2017,AAS0276975,15,N,N/A,Y,N/A
Pendle Borough Council,Financial Services,Supplies and Services,EFM : Other Equipment,4003,BARCLAYCARD COMMERCIAL,A0045954, 23/01/2017,AAS0276975,23.29,N,N/A,Y,N/A
Pendle Borough Council,Financial Services,Supplies and Services,EFM : Other Equipment,4003,BARCLAYCARD COMMERCIAL,A0045954, 23/01/2017,AAS0276975,192.57,N,N/A,Y,N/A
Pendle Borough Council,Financial Services,Supplies and Services,Computer Charges,4509,BARCLAYCARD COMMERCIAL,A0045954, 23/01/2017,AAS0276801,17.9,N,N/A,Y,N/A
Pendle Borough Council,Financial Services,Supplies and Services,Computer Charges,4509,BARCLAYCARD COMMERCIAL,A0045954, 23/01/2017,AAS0276801,19.03,N,N/A,Y,N/A
Pendle Borough Council,Financial Services,Supplies and Services,Computer Charges,4509,BARCLAYCARD COMMERCIAL,A0045954, 23/01/2017,AAS0276801,19.57,N,N/A,Y,N/A
Pendle Borough Council,Financial Services,Supplies and Services,Computer Charges,4509,BARCLAYCARD COMMERCIAL,A0045954, 23/01/2017,AAS0276801,19.57,N,N/A,Y,N/A
Pendle Borough Council,Financial Services,Supplies and Services,Computer Charges,4509,BARCLAYCARD COMMERCIAL,A0045954, 23/01/2017,AAS0276801,19.57,N,N/A,Y,N/A
Pendle Borough Council,Financial Services,Supplies and Services,Computer Charges,4509,BARCLAYCARD COMMERCIAL,A0045954, 23/01/2017,AAS0276801,19.57,N,N/A,Y,N/A
Pendle Borough Council,Financial Services,Supplies and Services,Computer Charges,4509,BARCLAYCARD COMMERCIAL,A0045954, 23/01/2017,AAS0276801,19.57,N,N/A,Y,N/A
Pendle Borough Council,Financial Services,Supplies and Services,Computer Charges,4509,BARCLAYCARD COMMERCIAL,A0045954, 23/01/2017,AAS0276801,19.57,N,N/A,Y,N/A
Pendle Borough Council,Financial Services,Supplies and Services,Computer Charges,4509,BARCLAYCARD COMMERCIAL,A0045954, 23/01/2017,AAS0276801,19.57,N,N/A,Y,N/A
Pendle Borough Council,Financial Services,Supplies and Services,Computer Charges,4509,BARCLAYCARD COMMERCIAL,A0045954, 23/01/2017,AAS0276801,19.57,N,N/A,Y,N/A
Pendle Borough Council,Financial Services,Supplies and Services,Computer Charges,4509,BARCLAYCARD COMMERCIAL,A0045954, 23/01/2017,AAS0276801,19.57,N,N/A,Y,N/A
Pendle Borough Council,Financial Services,Supplies and Services,Computer Charges,4509,BARCLAYCARD COMMERCIAL,A0045954, 23/01/2017,AAS0276801,19.57,N,N/A,Y,N/A
Pendle Borough Council,Financial Services,Supplies and Services,Computer Charges,4509,BARCLAYCARD COMMERCIAL,A0045954, 23/01/2017,AAS0276801,19.57,N,N/A,Y,N/A
Pendle Borough Council,Financial Services,Supplies and Services,Computer Charges,4509,BARCLAYCARD COMMERCIAL,A0045954, 23/01/2017,AAS0276801,19.57,N,N/A,Y,N/A
Pendle Borough Council,Financial Services,Supplies and Services,Computer Charges,4509,BARCLAYCARD COMMERCIAL,A0045954, 23/01/2017,AAS0276801,19.57,N,N/A,Y,N/A
Pendle Borough Council,Financial Services,Supplies and Services,Computer Charges,4509,BARCLAYCARD COMMERCIAL,A0045954, 23/01/2017,AAS0276801,19.57,N,N/A,Y,N/A
Pendle Borough Council,Financial Services,Supplies and Services,Computer Charges,4509,BARCLAYCARD COMMERCIAL,A0045954, 23/01/2017,AAS0276801,19.57,N,N/A,Y,N/A
Pendle Borough Council,Financial Services,Supplies and Services,Computer Charges,4509,BARCLAYCARD COMMERCIAL,A0045954, 23/01/2017,AAS0276801,19.57,N,N/A,Y,N/A
Pendle Borough Council,Financial Services,Supplies and Services,Computer Charges,4509,BARCLAYCARD COMMERCIAL,A0045954, 23/01/2017,AAS0276801,19.99,N,N/A,Y,N/A
Pendle Borough Council,Financial Services,Supplies and Services,Computer Charges,4509,BARCLAYCARD COMMERCIAL,A0045954, 23/01/2017,AAS0276801,13.74,N,N/A,Y,N/A
Pendle Borough Council,Financial Services,Supplies and Services,Seminars etc All Costs,4601,BARCLAYCARD COMMERCIAL,A0045954, 23/01/2017,AAS0276801,14.9,N,N/A,Y,N/A
Pendle Borough Council,Financial Services,Supplies and Services,Seminars etc All Costs,4601,BARCLAYCARD COMMERCIAL,A0045954, 23/01/2017,AAS0276976,48.81,N,N/A,Y,N/A
Pendle Borough Council,Financial Services,Supplies and Services,Seminars etc All Costs,4601,BARCLAYCARD COMMERCIAL,A0045954, 23/01/2017,AAS0276975,2.08,N,N/A,Y,N/A
Pendle Borough Council,Financial Services,Supplies and Services,Seminars etc All Costs,4601,BARCLAYCARD COMMERCIAL,A0045954, 23/01/2017,AAS0276975,3,N,N/A,Y,N/A
Pendle Borough Council,Financial Services,Supplies and Services,Seminars etc All Costs,4601,BARCLAYCARD COMMERCIAL,A0045954, 23/01/2017,AAS0276975,9.6,N,N/A,Y,N/A
Pendle Borough Council,Financial Services,Supplies and Services,Other Expenses,4705,BARCLAYCARD COMMERCIAL,A0045954, 23/01/2017,AAS0276801,732.21,N,N/A,Y,N/A
Pendle Borough Council,Financial Services,Supplies and Services,Other Expenses,4705,BARCLAYCARD COMMERCIAL,A0045954, 23/01/2017,AAS0276976,3.95,N,N/A,Y,N/A
Pendle Borough Council,Financial Services,Supplies and Services,Other Expenses,4705,BARCLAYCARD COMMERCIAL,A0045954, 23/01/2017,AAS0276976,29.95,N,N/A,Y,N/A
Pendle Borough Council,Financial Services,Transfer Payments,Accommodation ,6103,BARCLAYCARD COMMERCIAL,A0045954, 23/01/2017,AAS0276975,56.67,N,N/A,Y,N/A
Pendle Borough Council,Financial Services,Transfer Payments,Accommodation ,6103,BARCLAYCARD COMMERCIAL,A0045954, 23/01/2017,AAS0276975,56.67,N,N/A,Y,N/A
Pendle Borough Council,Financial Services,Transfer Payments,Accommodation ,6103,BARCLAYCARD COMMERCIAL,A0045954, 23/01/2017,AAS0276975,240,N,N/A,Y,N/A
Pendle Borough Council,Engineering & Special Projects,Premises Related Expense,Grounds : R & M : Day to Day : Routine,2101,ISAAC BUTTERWORTH LTD,A0048337, 19/01/2017,HED0276817,100,N,N/A,N,N/A
Pendle Borough Council,Engineering & Special Projects,Capital Costs,Capital : Payments,CD14,ISAAC BUTTERWORTH LTD,A0048337, 19/01/2017,HED0276817,1160,N,N/A,N,N/A
Pendle Borough Council,Engineering & Special Projects,Supplies and Services,EFM : Other Equipment,4003,VIP SYSTEM LIMITED,A0050529, 05/01/2017,HED0276549,103.88,N,N/A,N,N/A
Pendle Borough Council,Engineering & Special Projects,Supplies and Services,EFM : Other Equipment,4003,VIP SYSTEM LIMITED,A0050529, 05/01/2017,HED0276549,103.89,N,N/A,N,N/A
Pendle Borough Council,Parks & Recreation Services,Transport Related Expense,Tprt : Repairs : General,3105,CAMPEY TURF CARE SYSTEMS,A0050717, 26/01/2017,PCO0276967,7.89,N,N/A,N,N/A
Pendle Borough Council,Parks & Recreation Services,Transport Related Expense,Tprt : Repairs : General,3105,CAMPEY TURF CARE SYSTEMS,A0050717, 26/01/2017,PCO0276967,9,N,N/A,N,N/A
Pendle Borough Council,Parks & Recreation Services,Transport Related Expense,Tprt : Repairs : General,3105,CAMPEY TURF CARE SYSTEMS,A0050717, 26/01/2017,PCO0276967,13.56,N,N/A,N,N/A
Pendle Borough Council,Parks & Recreation Services,Transport Related Expense,Tprt : Repairs : General,3105,CAMPEY TURF CARE SYSTEMS,A0050717, 26/01/2017,PCO0276967,14.53,N,N/A,N,N/A
Pendle Borough Council,Housing Regeneration Services,Supplies and Services,Other Expenses,4705,PETER LALLY & ASSOCIATES,A0050718, 26/01/2017,HMR0276955,1500,N,N/A,N,N/A
Pendle Borough Council,Parks & Recreation Services,Supplies and Services,Subscriptions & Donations,4706,NATIONAL ASSOC OF MEMORIAL MASONS,A0050779, 05/01/2017,PCO0276546,205,N,N/A,N,N/A
Pendle Borough Council,Operational Services,Transport Related Expense,Tprt : Repairs : General,3105,MONTGOMERY SIGNS LIMITED,A0051335, 12/01/2017,OPS0276621,55,N,N/A,N,N/A
Pendle Borough Council,Operational Services,Transport Related Expense,Tprt : Repairs : General,3105,MONTGOMERY SIGNS LIMITED,A0051335, 12/01/2017,OPS0276621,55,N,N/A,N,N/A
Pendle Borough Council,Operational Services,Transport Related Expense,Tprt : Repairs : General,3105,MONTGOMERY SIGNS LIMITED,A0051335, 12/01/2017,OPS0276620,55,N,N/A,N,N/A
Pendle Borough Council,Financial Services,Premises Related Expense,Premises Insurance,2801,JLT SPECIALITY LTD,A0051508, 05/01/2017,AAS0276592,1060.29,N,N/A,N,N/A
Pendle Borough Council,Human Resources,Indirect Employee Expenses,Recruitment,1221,LIBERATA UK LTD,A0051618, 19/01/2017,PER0276859,285,N,N/A,N,N/A
Pendle Borough Council,Financial Services,Indirect Employee Expenses,Pensions Increase Act Payments,1234,LIBERATA UK LTD,A0051618, 05/01/2017,AAS0276591,9608.33,N,N/A,N,N/A
Pendle Borough Council,Financial Services,Premises Related Expense,Rents,2301,LIBERATA UK LTD,A0051618, 12/01/2017,AAS0276726,1748.48,N,N/A,N,N/A
Pendle Borough Council,Financial Services,Agency Costs,Liberata,5301,LIBERATA UK LTD,A0051618, 05/01/2017,AAS0276591,1175.68,N,N/A,N,N/A
Pendle Borough Council,Financial Services,Agency Costs,Liberata,5301,LIBERATA UK LTD,A0051618, 12/01/2017,AAS0276734,10672.5,N,N/A,N,N/A
Pendle Borough Council,Financial Services,Agency Costs,Liberata,5301,LIBERATA UK LTD,A0051618, 12/01/2017,AAS0276734,33600.81,N,N/A,N,N/A
Pendle Borough Council,Financial Services,Agency Costs,Liberata,5301,LIBERATA UK LTD,A0051618, 12/01/2017,AAS0276734,25091.93,N,N/A,N,N/A
Pendle Borough Council,Financial Services,Agency Costs,Liberata,5301,LIBERATA UK LTD,A0051618, 12/01/2017,AAS0276734,88420.32,N,N/A,N,N/A
Pendle Borough Council,Financial Services,Agency Costs,Liberata,5301,LIBERATA UK LTD,A0051618, 12/01/2017,AAS0276734,51798.8,N,N/A,N,N/A
Pendle Borough Council,Financial Services,Agency Costs,Liberata,5301,LIBERATA UK LTD,A0051618, 26/01/2017,AAS0277017,1433.23,N,N/A,N,N/A
Pendle Borough Council,Financial Services,Agency Costs,Liberata,5301,LIBERATA UK LTD,A0051618, 26/01/2017,AAS0277016,2192.72,N,N/A,N,N/A
Pendle Borough Council,Financial Services,Agency Costs,Liberata,5301,LIBERATA UK LTD,A0051618, 12/01/2017,AAS0276734,84447.27,N,N/A,N,N/A
Pendle Borough Council,Financial Services,Agency Costs,Liberata,5301,LIBERATA UK LTD,A0051618, 12/01/2017,AAS0276734,122220.71,N,N/A,N,N/A
Pendle Borough Council,Financial Services,Capital Financing Costs,Lease costs:Computer (Orchard),8204,LIBERATA UK LTD,A0051618, 05/01/2017,AAS0276591,6051.81,N,N/A,N,N/A
Pendle Borough Council,Financial Services,,Other Income : Non-VATable,9303,LIBERATA UK LTD,A0051618, 19/01/2017,AAS0276873,1743,N,N/A,N,N/A
Pendle Borough Council,Financial Services,,Other Income : Non-VATable,9303,LIBERATA UK LTD,A0051618, 05/01/2017,AAS0276590,2244,N,N/A,N,N/A
Pendle Borough Council,Financial Services,Capital Costs,Capital : Salaries,CD13,LIBERATA UK LTD,A0051618, 05/01/2017,AAS0276589,600,N,N/A,N,N/A
Pendle Borough Council,Housing Regeneration Services,Capital Costs,Ren Grant : 1996 Act,CH22,BLUEBELL NORTH WEST LIMITED,A0051694, 26/01/2017,HMR0276956,2082,N,N/A,N,347
Pendle Borough Council,Property Services,Premises Related Expense,Electricity,2203,SOUTHERN ELECTRIC,A0051726, 12/01/2017,EST0276760,131.88,N,N/A,N,N/A
Pendle Borough Council,Human Resources,Supplies and Services,Other Expenses,4705,FIDELITI LIMITED,A0052058, 12/01/2017,PER0276784,70.45,N,N/A,N,N/A
Pendle Borough Council,Property Services,Premises Related Expense,Bldgs : R & M : Day To Day,2001,ALERT FIRE AND SECURITY LIMITED,A0052065, 19/01/2017,EST0276847,40,N,N/A,N,N/A
Pendle Borough Council,Property Services,Premises Related Expense,Bldgs : R & M : Day To Day,2001,ALERT FIRE AND SECURITY LIMITED,A0052065, 19/01/2017,EST0276843,75,N,N/A,N,N/A
Pendle Borough Council,Democratic & Legal Services,Supplies and Services,Mobile Phones,4508,O2 (UK) LIMITED,A0053660, 19/01/2017,DAL0276911,10,N,N/A,N,N/A
Pendle Borough Council,Democratic & Legal Services,Supplies and Services,Mobile Phones,4508,O2 (UK) LIMITED,A0053660, 19/01/2017,DAL0276911,19.85,N,N/A,N,N/A
Pendle Borough Council,Democratic & Legal Services,Supplies and Services,Mobile Phones,4508,O2 (UK) LIMITED,A0053660, 19/01/2017,DAL0276911,24.7,N,N/A,N,N/A
Pendle Borough Council,Democratic & Legal Services,Supplies and Services,Mobile Phones,4508,O2 (UK) LIMITED,A0053660, 19/01/2017,DAL0276911,13.5,N,N/A,N,N/A
Pendle Borough Council,Democratic & Legal Services,Supplies and Services,Mobile Phones,4508,O2 (UK) LIMITED,A0053660, 19/01/2017,DAL0276911,9.26,N,N/A,N,N/A
Pendle Borough Council,Democratic & Legal Services,Supplies and Services,Mobile Phones,4508,O2 (UK) LIMITED,A0053660, 19/01/2017,DAL0276911,11.5,N,N/A,N,N/A
Pendle Borough Council,Democratic & Legal Services,Supplies and Services,Mobile Phones,4508,O2 (UK) LIMITED,A0053660, 19/01/2017,DAL0276911,11.5,N,N/A,N,N/A
Pendle Borough Council,Democratic & Legal Services,Supplies and Services,Mobile Phones,4508,O2 (UK) LIMITED,A0053660, 19/01/2017,DAL0276911,15.23,N,N/A,N,N/A
Pendle Borough Council,Democratic & Legal Services,Supplies and Services,Mobile Phones,4508,O2 (UK) LIMITED,A0053660, 19/01/2017,DAL0276911,10.37,N,N/A,N,N/A
Pendle Borough Council,Democratic & Legal Services,Supplies and Services,Mobile Phones,4508,O2 (UK) LIMITED,A0053660, 19/01/2017,DAL0276911,-4.73,N,N/A,N,N/A
Pendle Borough Council,Democratic & Legal Services,Supplies and Services,Mobile Phones,4508,O2 (UK) LIMITED,A0053660, 19/01/2017,DAL0276911,9.2,N,N/A,N,N/A
Pendle Borough Council,Democratic & Legal Services,Supplies and Services,Mobile Phones,4508,O2 (UK) LIMITED,A0053660, 19/01/2017,DAL0276911,9,N,N/A,N,N/A
Pendle Borough Council,Democratic & Legal Services,Supplies and Services,Mobile Phones,4508,O2 (UK) LIMITED,A0053660, 19/01/2017,DAL0276911,9,N,N/A,N,N/A
Pendle Borough Council,Housing Regeneration Services,Capital Costs,Capital : Payments,CD14,NPOWER,A0054545, 12/01/2017,HMR0276627,6.03,N,N/A,N,N/A
Pendle Borough Council,Housing Regeneration Services,Capital Costs,Capital : Payments,CD14,NPOWER,A0054545, 12/01/2017,HMR0276628,7.96,N,N/A,N,N/A
Pendle Borough Council,Housing Regeneration Services,Capital Costs,Capital : Payments,CD14,NPOWER,A0054545, 19/01/2017,HMR0276860,10.9,N,N/A,N,N/A
Pendle Borough Council,Housing Regeneration Services,Capital Costs,Capital : Payments,CD14,NPOWER,A0054545, 19/01/2017,HMR0276861,26.41,N,N/A,N,N/A
Pendle Borough Council,Housing Regeneration Services,Capital Costs,Capital : Payments,CD14,NPOWER,A0054545, 19/01/2017,HMR0276862,27.6,N,N/A,N,N/A
Pendle Borough Council,Housing Regeneration Services,Capital Costs,Capital : Payments,CD14,NPOWER,A0054545, 12/01/2017,HMR0276630,28.29,N,N/A,N,N/A
Pendle Borough Council,Housing Regeneration Services,Capital Costs,Capital : Payments,CD14,NPOWER,A0054545, 12/01/2017,HMR0276631,48.51,N,N/A,N,N/A
Pendle Borough Council,Housing Regeneration Services,Capital Costs,Capital : Payments,CD14,NPOWER,A0054545, 19/01/2017,HMR0276863,59.62,N,N/A,N,N/A
Pendle Borough Council,Housing Regeneration Services,Capital Costs,Capital : Payments,CD14,NPOWER,A0054545, 19/01/2017,HMR0276865,81.5,N,N/A,N,N/A
Pendle Borough Council,Parks & Recreation Services,Indirect Employee Expenses,Emp : Medical Expenses,1236,BEN SHAW TRAINING LIMITED,A0055722, 05/01/2017,PCO0276538,55,N,N/A,N,N/A
Pendle Borough Council,Housing Regeneration Services,Supplies and Services,Other Expenses,4705,RIGBY`S EXECUTIVE COACHES LTD,A0055923, 12/01/2017,HMR0276720,150,N,N/A,N,N/A
Pendle Borough Council,Engineering & Special Projects,Premises Related Expense,Bldgs : R & M : Day To Day,2001,A BINNS & CO,A0057121, 19/01/2017,HED0276812,130,N,N/A,N,N/A
Pendle Borough Council,Operational Services,Supplies and Services,Telephones : Direct,4502,SECURITY MONITORING CENTRES LTD,A0059068, 12/01/2017,OPS0276670,121.67,N,N/A,N,N/A
Pendle Borough Council,Operational Services,Premises Related Expense,Water & Sewerage,2501,UNITED UTILITIES,A0059246, 26/01/2017,OPS0276945,158.06,N,N/A,N,N/A
Pendle Borough Council,Operational Services,Premises Related Expense,Water & Sewerage,2501,UNITED UTILITIES,A0059246, 26/01/2017,OPS0276945,166.55,N,N/A,N,N/A
Pendle Borough Council,Operational Services,Premises Related Expense,Water & Sewerage,2501,UNITED UTILITIES,A0059246, 26/01/2017,OPS0276945,196.81,N,N/A,N,N/A
Pendle Borough Council,Operational Services,Premises Related Expense,Water & Sewerage,2501,UNITED UTILITIES,A0059246, 19/01/2017,OPS0276823,436.6,N,N/A,N,N/A
Pendle Borough Council,Operational Services,Premises Related Expense,Water & Sewerage,2501,UNITED UTILITIES,A0059246, 26/01/2017,OPS0276945,227.07,N,N/A,N,N/A
Pendle Borough Council,Operational Services,Premises Related Expense,Water & Sewerage,2501,UNITED UTILITIES,A0059246, 19/01/2017,OPS0276823,172.58,N,N/A,N,N/A
Pendle Borough Council,Housing Regeneration Services,Agency Costs,Lancashire C C,5102,NSL LIMITED,A0059256, 12/01/2017,HMR0276687,1132.63,N,N/A,N,N/A
Pendle Borough Council,Democratic & Legal Services,Supplies and Services,Adverts : Statutory Notice,4702,JOHNSTON PUBLISHING LIMITED,A0059640, 19/01/2017,DAL0276793,183.54,N,N/A,N,N/A
Pendle Borough Council,Democratic & Legal Services,Supplies and Services,Adverts : Statutory Notice,4702,JOHNSTON PUBLISHING LIMITED,A0059640, 12/01/2017,DAL0276641,235.98,N,N/A,N,N/A
Pendle Borough Council,Democratic & Legal Services,Supplies and Services,Adverts : Statutory Notice,4702,JOHNSTON PUBLISHING LIMITED,A0059640, 12/01/2017,DAL0276642,235.98,N,N/A,N,N/A
Pendle Borough Council,Directorate,Supplies and Services,Adverts : Statutory Notice,4702,JOHNSTON PUBLISHING LIMITED,A0059640, 05/01/2017,MAN0276492,262.2,N,N/A,N,N/A
Pendle Borough Council,Democratic & Legal Services,Supplies and Services,Adverts : Statutory Notice,4702,JOHNSTON PUBLISHING LIMITED,A0059640, 26/01/2017,DAL0276935,314.64,N,N/A,N,N/A
Pendle Borough Council,Democratic & Legal Services,Supplies and Services,Seminars etc All Costs,4601,MBL SEMINARS LTD,A0059765, 27/01/2017,DAL4005234,-100,N,N/A,N,N/A
Pendle Borough Council,Democratic & Legal Services,Supplies and Services,Seminars etc All Costs,4601,MBL SEMINARS LTD,A0059765, 27/01/2017,DAL0276703,100,N,N/A,N,N/A
Pendle Borough Council,Property Services,Premises Related Expense,Bldgs : R & M : Day To Day,2001,MAXIGIENE ENVIRONMENTAL SERVICES LTD,A0060911, 26/01/2017,EST0276994,100,N,N/A,N,N/A
Pendle Borough Council,Property Services,Premises Related Expense,Bldgs : R & M : Day To Day,2001,MAXIGIENE ENVIRONMENTAL SERVICES LTD,A0060911, 26/01/2017,EST0276999,367,N,N/A,N,N/A
Pendle Borough Council,Property Services,Premises Related Expense,Bldgs : R & M : Day To Day,2001,MAXIGIENE ENVIRONMENTAL SERVICES LTD,A0060911, 26/01/2017,EST0276995,480,N,N/A,N,N/A
Pendle Borough Council,Property Services,Premises Related Expense,Bldgs : R & M : Day To Day,2001,MAXIGIENE ENVIRONMENTAL SERVICES LTD,A0060911, 26/01/2017,EST0276996,15,N,N/A,N,N/A
Pendle Borough Council,Property Services,Premises Related Expense,Bldgs : R & M : Day To Day,2001,MAXIGIENE ENVIRONMENTAL SERVICES LTD,A0060911, 26/01/2017,EST0276998,25,N,N/A,N,N/A
Pendle Borough Council,Operational Services,Supplies and Services,EFM Materials,4004,CONTAINER CARE SOLUTIONS LIMITED,A0061112, 05/01/2017,OPS0276597,24,N,N/A,N,N/A
Pendle Borough Council,Operational Services,Supplies and Services,EFM Materials,4004,CONTAINER CARE SOLUTIONS LIMITED,A0061112, 05/01/2017,OPS0276596,350,N,N/A,N,N/A
Pendle Borough Council,Operational Services,Supplies and Services,EFM Materials,4004,CONTAINER CARE SOLUTIONS LIMITED,A0061112, 05/01/2017,OPS0276598,480,N,N/A,N,N/A
Pendle Borough Council,Operational Services,Supplies and Services,EFM Materials,4004,CONTAINER CARE SOLUTIONS LIMITED,A0061112, 05/01/2017,OPS0276598,1200,N,N/A,N,N/A
Pendle Borough Council,Operational Services,Supplies and Services,EFM Materials,4004,CONTAINER CARE SOLUTIONS LIMITED,A0061112, 05/01/2017,OPS0276596,3555,N,N/A,N,N/A
Pendle Borough Council,Planning & Building Control,Supplies and Services,Other Expenses,4705,DLP PLANNING LTD,A0061134, 12/01/2017,PBC0276708,8374,N,N/A,N,N/A
Pendle Borough Council,Parks & Recreation Services,Supplies and Services,EFM : Other Equipment,4003,VALE ENGINEERING (YORK) LTD,A0061399, 12/01/2017,PCO0276764,920,N,N/A,N,N/A
Pendle Borough Council,Economic Development & Tourism,Supplies and Services,Other Expenses,4705,LIBRA TEXTILES LTD,A0062627, 12/01/2017,REG0276707,4814.15,N,N/A,N,N/A
Pendle Borough Council,Financial Services,Transport Related Expense,Tprt : Annual Hire Charge,3601,ARVAL LTD (ALLSTAR FUEL SERVICES),A0062668, 17/01/2017,AAS0276927,144.48,N,N/A,N,N/A
Pendle Borough Council,Financial Services,Transport Related Expense,Tprt : Annual Hire Charge,3601,ARVAL LTD (ALLSTAR FUEL SERVICES),A0062668, 17/01/2017,AAS0276927,144.48,N,N/A,N,N/A
Pendle Borough Council,Financial Services,Transport Related Expense,Tprt : Annual Hire Charge,3601,ARVAL LTD (ALLSTAR FUEL SERVICES),A0062668, 17/01/2017,AAS0276927,144.48,N,N/A,N,N/A
Pendle Borough Council,Financial Services,Transport Related Expense,Tprt : Annual Hire Charge,3601,ARVAL LTD (ALLSTAR FUEL SERVICES),A0062668, 17/01/2017,AAS0276927,144.48,N,N/A,N,N/A
Pendle Borough Council,Financial Services,Transport Related Expense,Tprt : Annual Hire Charge,3601,ARVAL LTD (ALLSTAR FUEL SERVICES),A0062668, 17/01/2017,AAS0276926,256.09,N,N/A,N,N/A
Pendle Borough Council,Financial Services,Transport Related Expense,Tprt : Annual Hire Charge,3601,ARVAL LTD (ALLSTAR FUEL SERVICES),A0062668, 17/01/2017,AAS0276926,252.79,N,N/A,N,N/A
Pendle Borough Council,Financial Services,Transport Related Expense,Tprt : Annual Hire Charge,3601,ARVAL LTD (ALLSTAR FUEL SERVICES),A0062668, 17/01/2017,AAS0276927,144.48,N,N/A,N,N/A
Pendle Borough Council,Operational Services,Premises Related Expense,Bldgs : R & M : Day To Day,2001,KEYPLUS SECURITY LIMITED,A0062723, 19/01/2017,OPS0276822,150,N,N/A,N,N/A
Pendle Borough Council,Operational Services,Premises Related Expense,Bldgs : R & M : Day To Day,2001,NORTH WEST TRADING COMPANY,A0063527, 19/01/2017,OPS0276882,22.43,N,N/A,N,N/A
Pendle Borough Council,Operational Services,Transport Related Expense,Tprt : Repairs : General,3105,NORTH WEST TRADING COMPANY,A0063527, 19/01/2017,OPS0276834,152.64,N,N/A,N,N/A
Pendle Borough Council,Housing Regeneration Services,Supplies and Services,LCC Levy (Admins Costs),4419,PHOENIX COMMERCIAL COLLECTIONS LTD,A0064046, 12/01/2017,HMR0276683,-310,N,N/A,N,N/A
Pendle Borough Council,Housing Regeneration Services,Supplies and Services,LCC Levy (Admins Costs),4419,PHOENIX COMMERCIAL COLLECTIONS LTD,A0064046, 12/01/2017,HMR0276683,310,N,N/A,N,N/A
Pendle Borough Council,Democratic & Legal Services,Supplies and Services,Postages,4501,WHISTL UK LIMITED,A0064458, 05/01/2017,DAL0276493,5.06,N,N/A,N,N/A
Pendle Borough Council,Democratic & Legal Services,Supplies and Services,Postages,4501,WHISTL UK LIMITED,A0064458, 05/01/2017,DAL0276557,6.52,N,N/A,N,N/A
Pendle Borough Council,Democratic & Legal Services,Supplies and Services,Postages,4501,WHISTL UK LIMITED,A0064458, 05/01/2017,DAL0276493,0.36,N,N/A,N,N/A
Pendle Borough Council,Democratic & Legal Services,Supplies and Services,Postages,4501,WHISTL UK LIMITED,A0064458, 05/01/2017,DAL0276557,36.24,N,N/A,N,N/A
Pendle Borough Council,Democratic & Legal Services,Supplies and Services,Postages,4501,WHISTL UK LIMITED,A0064458, 05/01/2017,DAL0276493,97.89,N,N/A,N,N/A
Pendle Borough Council,Democratic & Legal Services,Supplies and Services,Postages,4501,WHISTL UK LIMITED,A0064458, 05/01/2017,DAL0276557,2.53,N,N/A,N,N/A
Pendle Borough Council,Democratic & Legal Services,Supplies and Services,Postages,4501,WHISTL UK LIMITED,A0064458, 05/01/2017,DAL0276493,2.9,N,N/A,N,N/A
Pendle Borough Council,Democratic & Legal Services,Supplies and Services,Postages,4501,WHISTL UK LIMITED,A0064458, 05/01/2017,DAL0276557,1.44,N,N/A,N,N/A
Pendle Borough Council,Democratic & Legal Services,Supplies and Services,Postages,4501,WHISTL UK LIMITED,A0064458, 05/01/2017,DAL0276493,31.63,N,N/A,N,N/A
Pendle Borough Council,Democratic & Legal Services,Supplies and Services,Postages,4501,WHISTL UK LIMITED,A0064458, 05/01/2017,DAL0276557,15.96,N,N/A,N,N/A
Pendle Borough Council,Democratic & Legal Services,Supplies and Services,Postages,4501,WHISTL UK LIMITED,A0064458, 05/01/2017,DAL0276493,19.63,N,N/A,N,N/A
Pendle Borough Council,Property Services,Supplies and Services,Publicity & advertisement,4704,LANCASHIRE BROADCASTING CO LTD,A0064934, 12/01/2017,EST0276757,200,N,N/A,N,N/A
Pendle Borough Council,Property Services,Supplies and Services,Publicity & advertisement,4704,LANCASHIRE BROADCASTING CO LTD,A0064934, 12/01/2017,EST0276757,200,N,N/A,N,N/A
Pendle Borough Council,Human Resources,Transport Related Expense,Tprt : Annual Hire Charge,3601,ARNOLD CLARK VEHICLE MANAGEMENT,A0065524, 26/01/2017,PER0277001,449,N,N/A,N,N/A
Pendle Borough Council,Human Resources,Transport Related Expense,Car Allows : Offs : Lease Exps,3806,ARNOLD CLARK VEHICLE MANAGEMENT,A0065524, 12/01/2017,PER0276783,11.07,N,N/A,N,N/A
Pendle Borough Council,Human Resources,Transport Related Expense,Car Allows : Offs : Lease Exps,3806,ARNOLD CLARK VEHICLE MANAGEMENT,A0065524, 12/01/2017,PER0276783,11.48,N,N/A,N,N/A
Pendle Borough Council,Human Resources,Transport Related Expense,Car Allows : Offs : Lease Exps,3806,ARNOLD CLARK VEHICLE MANAGEMENT,A0065524, 12/01/2017,PER0276783,70.98,N,N/A,N,N/A
Pendle Borough Council,Human Resources,Transport Related Expense,Car Allows : Offs : Lease Exps,3806,ARNOLD CLARK VEHICLE MANAGEMENT,A0065524, 12/01/2017,PER0276783,73.55,N,N/A,N,N/A
Pendle Borough Council,Democratic & Legal Services,Supplies and Services,Meeting Expenses,4610,THE RAINHALL CENTRE,A0066193, 12/01/2017,DAL0276695,15,N,N/A,N,N/A
Pendle Borough Council,Housing Regeneration Services,Capital Costs,Ren Grant : 1996 Act,CH22,ATM CONSTRUCTION LTD,A0066308, 12/01/2017,HMR0276698,24786.13,N,N/A,N,4131.02
Pendle Borough Council,Engineering & Special Projects,Capital Costs,Capital : Payments,CD14,THE FRIENDS OF ST JOHNS CHURCHYARD,A0066463, 19/01/2017,HED0276838,200,N,N/A,N,N/A
Pendle Borough Council,Housing Regeneration Services,Capital Costs,Ren Grant : 1996 Act,CH22,IMPERIAL BUILDERS,A0066476, 26/01/2017,HMR0276649,3765.2,N,N/A,N,627.53
Pendle Borough Council,Human Resources,Transport Related Expense,Car Allows : Offs : Lease Exps,3806,LEX AUTOLEASE LIMITED,A0066530, 26/01/2017,PER0277007,169.6,N,N/A,N,N/A
Pendle Borough Council,Human Resources,Transport Related Expense,Car Allows : Offs : Lease Exps,3806,LEX AUTOLEASE LIMITED,A0066530, 26/01/2017,PER0277007,171.57,N,N/A,N,N/A
Pendle Borough Council,Human Resources,Transport Related Expense,Car Allows : Offs : Lease Exps,3806,LEX AUTOLEASE LIMITED,A0066530, 12/01/2017,PER0276787,246.28,N,N/A,N,N/A
Pendle Borough Council,Human Resources,Transport Related Expense,Car Allows : Offs : Lease Exps,3806,LEX AUTOLEASE LIMITED,A0066530, 12/01/2017,PER0276787,273.62,N,N/A,N,N/A
Pendle Borough Council,Property Services,Premises Related Expense,Bldgs : R & M : Day To Day,2001,SPEAKMAN CONTRACTORS LTD,A0066581, 26/01/2017,EST0276992,168.22,N,N/A,N,N/A
Pendle Borough Council,Property Services,Premises Related Expense,Bldgs : R & M : Day To Day,2001,SPEAKMAN CONTRACTORS LTD,A0066581, 26/01/2017,EST0276992,121.52,N,N/A,N,N/A
Pendle Borough Council,Property Services,Premises Related Expense,Bldgs : R & M : Day To Day,2001,SPEAKMAN CONTRACTORS LTD,A0066581, 26/01/2017,EST0276992,214.44,N,N/A,N,N/A
Pendle Borough Council,Property Services,Premises Related Expense,Bldgs : R & M : Day To Day,2001,SPEAKMAN CONTRACTORS LTD,A0066581, 26/01/2017,EST0276992,167.75,N,N/A,N,N/A
Pendle Borough Council,Property Services,Premises Related Expense,Bldgs : R & M : Day To Day,2001,SPEAKMAN CONTRACTORS LTD,A0066581, 26/01/2017,EST0276992,230.18,N,N/A,N,N/A
Pendle Borough Council,Property Services,Premises Related Expense,Bldgs : R & M : Day To Day,2001,SPEAKMAN CONTRACTORS LTD,A0066581, 26/01/2017,EST0276992,505.61,N,N/A,N,N/A
Pendle Borough Council,Housing Regeneration Services,Premises Related Expense,Bldgs : R & M : Abnormal,2002,SPEAKMAN CONTRACTORS LTD,A0066581, 26/01/2017,HMR0276979,345,N,N/A,N,N/A
Pendle Borough Council,Housing Regeneration Services,Premises Related Expense,Bldgs : R & M : Abnormal,2002,SPEAKMAN CONTRACTORS LTD,A0066581, 26/01/2017,HMR0276980,400.14,N,N/A,N,N/A
Pendle Borough Council,Housing Regeneration Services,Premises Related Expense,Bldgs : R & M : Abnormal,2002,SPEAKMAN CONTRACTORS LTD,A0066581, 19/01/2017,HMR0276872,5898.91,N,N/A,N,N/A
Pendle Borough Council,Property Services,Premises Related Expense,Bldgs : Vandalism Repairs,2005,SPEAKMAN CONTRACTORS LTD,A0066581, 26/01/2017,EST0276992,921,N,N/A,N,N/A
Pendle Borough Council,Property Services,Capital Costs,Capital : Legal Fees,CD09,SPEAKMAN CONTRACTORS LTD,A0066581, 26/01/2017,EST0276992,147.83,N,N/A,N,N/A
Pendle Borough Council,Property Services,Capital Costs,Capital : Legal Fees,CD09,SPEAKMAN CONTRACTORS LTD,A0066581, 26/01/2017,EST0276992,249.03,N,N/A,N,N/A
Pendle Borough Council,Property Services,Capital Costs,Capital : Payments,cd14,SPEAKMAN CONTRACTORS LTD,A0066581, 19/01/2017,EST0276846,2889,N,N/A,N,N/A
Pendle Borough Council,Property Services,Capital Costs,Capital : Payments,CD14,SPEAKMAN CONTRACTORS LTD,A0066581, 19/01/2017,EST0276845,6848.75,N,N/A,N,N/A
Pendle Borough Council,Property Services,Premises Related Expense,Grounds : R & M : Day to Day : Routine,2101,LIVESEY BUILDING MAINTENANCE CONTRACTORS,A0066865, 12/01/2017,EST0276776,95,N,N/A,N,N/A
Pendle Borough Council,Property Services,Premises Related Expense,Grounds : R & M : Day to Day : Routine,2101,LIVESEY BUILDING MAINTENANCE CONTRACTORS,A0066865, 12/01/2017,EST0276776,350,N,N/A,N,N/A
Pendle Borough Council,Engineering & Special Projects,Premises Related Expense,Grounds : R & M : Day to Day : Routine,2101,LIVESEY BUILDING MAINTENANCE CONTRACTORS,A0066865, 05/01/2017,HED0276551,5,N,N/A,N,N/A
Pendle Borough Council,Engineering & Special Projects,Premises Related Expense,Grounds : R & M : Day to Day : Routine,2101,LIVESEY BUILDING MAINTENANCE CONTRACTORS,A0066865, 05/01/2017,HED0276551,65,N,N/A,N,N/A
Pendle Borough Council,Engineering & Special Projects,Premises Related Expense,Grounds : R & M : Day to Day : Routine,2101,LIVESEY BUILDING MAINTENANCE CONTRACTORS,A0066865, 05/01/2017,HED0276554,490,N,N/A,N,N/A
Pendle Borough Council,Engineering & Special Projects,Premises Related Expense,Grounds : R & M : Day to Day : Routine,2101,LIVESEY BUILDING MAINTENANCE CONTRACTORS,A0066865, 05/01/2017,HED0276554,630,N,N/A,N,N/A
Pendle Borough Council,Engineering & Special Projects,Premises Related Expense,Grounds : R & M : Day to Day : Routine,2101,LIVESEY BUILDING MAINTENANCE CONTRACTORS,A0066865, 05/01/2017,HED0276558,75,N,N/A,N,N/A
Pendle Borough Council,Engineering & Special Projects,Premises Related Expense,Grounds : R & M : Day to Day : Routine,2101,LIVESEY BUILDING MAINTENANCE CONTRACTORS,A0066865, 05/01/2017,HED0276553,60,N,N/A,N,N/A
Pendle Borough Council,Engineering & Special Projects,Premises Related Expense,Grounds : R & M : Day to Day : Routine,2101,LIVESEY BUILDING MAINTENANCE CONTRACTORS,A0066865, 05/01/2017,HED0276561,75,N,N/A,N,N/A
Pendle Borough Council,Engineering & Special Projects,Premises Related Expense,Grounds : R & M : Day to Day : Routine,2101,LIVESEY BUILDING MAINTENANCE CONTRACTORS,A0066865, 05/01/2017,HED0276561,75,N,N/A,N,N/A
Pendle Borough Council,Engineering & Special Projects,Premises Related Expense,Grounds : R & M : Day to Day : Routine,2101,LIVESEY BUILDING MAINTENANCE CONTRACTORS,A0066865, 05/01/2017,HED0276559,90,N,N/A,N,N/A
Pendle Borough Council,Engineering & Special Projects,Capital Costs,Capital : Payments,CD14,LIVESEY BUILDING MAINTENANCE CONTRACTORS,A0066865, 05/01/2017,HED0276553,260,N,N/A,N,N/A
Pendle Borough Council,Engineering & Special Projects,Capital Costs,Capital : Payments,CD14,LIVESEY BUILDING MAINTENANCE CONTRACTORS,A0066865, 05/01/2017,HED0276553,740,N,N/A,N,N/A
Pendle Borough Council,Human Resources,Indirect Employee Expenses,Emp : Medical Expenses,1236,PEOPLE ASSET MANAGEMENT LIMITED,A0067613, 12/01/2017,PER0276786,340,N,N/A,N,N/A
Pendle Borough Council,Engineering & Special Projects,Supplies and Services,LCC Levy (Admins Costs),4419,PATROL,A0067663, 19/01/2017,HED0276842,137.6,N,N/A,N,N/A
Pendle Borough Council,Operational Services,Supplies and Services,Other Expenses,4705,LIMPET LABELS UK LIMITED,A0067671, 05/01/2017,OPS0276600,166,N,N/A,N,N/A
Pendle Borough Council,Operational Services,Supplies and Services,Other Expenses,4705,LIMPET LABELS UK LIMITED,A0067671, 05/01/2017,OPS0276599,216,N,N/A,N,N/A
Pendle Borough Council,Operational Services,Transport Related Expense,Tprt : Repairs : General,3105,PROBRUSH T/A NORTHERN MUNICIPAL SPARES LTD,A0068263, 19/01/2017,OPS0276835,66.87,N,N/A,N,N/A
Pendle Borough Council,Operational Services,Transport Related Expense,Tprt : Repairs : General,3105,PROBRUSH T/A NORTHERN MUNICIPAL SPARES LTD,A0068263, 19/01/2017,OPS0276835,66.88,N,N/A,N,N/A
Pendle Borough Council,Operational Services,Transport Related Expense,Tprt : Repairs : General,3105,PROBRUSH T/A NORTHERN MUNICIPAL SPARES LTD,A0068263, 19/01/2017,OPS0276835,66.87,N,N/A,N,N/A
Pendle Borough Council,Operational Services,Transport Related Expense,Tprt : Repairs : General,3105,PROBRUSH T/A NORTHERN MUNICIPAL SPARES LTD,A0068263, 19/01/2017,OPS0276835,66.88,N,N/A,N,N/A
Pendle Borough Council,Operational Services,Transport Related Expense,Tprt : Repairs : General,3105,PROBRUSH T/A NORTHERN MUNICIPAL SPARES LTD,A0068263, 19/01/2017,OPS0276835,66.88,N,N/A,N,N/A
Pendle Borough Council,Operational Services,Transport Related Expense,Tprt : Repairs : General,3105,PROBRUSH T/A NORTHERN MUNICIPAL SPARES LTD,A0068263, 19/01/2017,OPS0276835,66.87,N,N/A,N,N/A
Pendle Borough Council,Engineering & Special Projects,Supplies and Services,Other Expenses,4705,CHIPSIDE LTD,A0068587, 19/01/2017,HED0276836,36.08,N,N/A,N,N/A
Pendle Borough Council,Parks & Recreation Services,Premises Related Expense,Grounds : R & M : Day to Day : Routine,2101,M C & M A STEWART HAULAGE,A0068863, 19/01/2017,PCO0276883,589.68,N,N/A,N,N/A
Pendle Borough Council,Financial Services,Premises Related Expense,Electricity,2203,BRITISH GAS BUSINESS,A0069538, 27/01/2017,AAS0277169,87.91,N,N/A,N,N/A
Pendle Borough Council,Financial Services,Premises Related Expense,Electricity,2203,BRITISH GAS BUSINESS,A0069538, 05/01/2017,AAS0276930,55.87,N,N/A,N,N/A
Pendle Borough Council,Chief Executives Policy Unit,Supplies and Services,Other Expenses,4705,THORNE ACCESS AND SECURITY,A0070220, 26/01/2017,COR0276920,60,N,N/A,N,N/A
Pendle Borough Council,Operational Services,Capital Costs,Capital : Payments,CD14,CRAEMER UK LIMITED,A0070869, 05/01/2017,OPS0276604,576,N,N/A,N,N/A
Pendle Borough Council,Operational Services,Capital Costs,Capital : Payments,CD14,CRAEMER UK LIMITED,A0070869, 05/01/2017,OPS0276601,1400,N,N/A,N,N/A
Pendle Borough Council,Operational Services,Capital Costs,Capital : Payments,CD14,CRAEMER UK LIMITED,A0070869, 05/01/2017,OPS0276525,4224,N,N/A,N,N/A
Pendle Borough Council,Operational Services,Capital Costs,Capital : Payments,CD14,CRAEMER UK LIMITED,A0070869, 05/01/2017,OPS0276525,6400,N,N/A,N,N/A
Pendle Borough Council,Property Services,Premises Related Expense,Bldgs : R & M : Day To Day,2001,QHS SOLUTIONS LIMITED,A0071912, 05/01/2017,EST0276585,175,N,N/A,N,N/A
Pendle Borough Council,Financial Services,Supplies and Services,Sub-Contractors,4007,QHS SOLUTIONS LIMITED,A0071912, 03/01/2017,AAS0276924,666.67,N,N/A,N,N/A
Pendle Borough Council,Environmental Health Services,Supplies and Services,Tests & Inspection Fees,4409,UNITED UTILITIES WATER PLC,A0072400, 05/01/2017,ENV0276566,111.7,N,N/A,N,N/A
Pendle Borough Council,Property Services,Capital Costs,Capital : Payments,CD14,UNITED UTILITIES WATER PLC,A0072400, 05/01/2017,EST0276326,74,N,N/A,N,N/A
Pendle Borough Council,Financial Services,Supplies and Services,Consultants Fees,4401,GLOBAL PAYMENTS,A0072461, 18/01/2017,AAS0276934,7,N,N/A,N,N/A
Pendle Borough Council,Financial Services,Supplies and Services,Consultants Fees,4401,GLOBAL PAYMENTS,A0072461, 18/01/2017,AAS0276934,949.38,N,N/A,N,N/A
Pendle Borough Council,Financial Services,Supplies and Services,Credit card and online charges,4421,GLOBAL PAYMENTS,A0072461, 18/01/2017,AAS0276932,7,N,N/A,N,N/A
Pendle Borough Council,Financial Services,Supplies and Services,Credit card and online charges,4421,GLOBAL PAYMENTS,A0072461, 18/01/2017,AAS0276933,7,N,N/A,N,N/A
Pendle Borough Council,Financial Services,Supplies and Services,Credit card and online charges,4421,GLOBAL PAYMENTS,A0072461, 18/01/2017,AAS0276933,1112.4,N,N/A,N,N/A
Pendle Borough Council,Financial Services,Supplies and Services,Credit card and online charges,4421,GLOBAL PAYMENTS,A0072461, 18/01/2017,AAS0276932,1373.59,N,N/A,N,N/A
Pendle Borough Council,Financial Services,Support Services,Bank Charges,7201,LLOYDS BANKING GROUP,A0072462, 23/01/2017,AAS0277167,45,N,N/A,N,N/A
Pendle Borough Council,Financial Services,Support Services,Bank Charges,7201,LLOYDS BANKING GROUP,A0072462, 17/01/2017,AAS0276929,591.01,N,N/A,N,N/A
Pendle Borough Council,Operational Services,Supplies and Services,Sub-Contractors,4007,OCS GROUP UK LIMITED,A0072816, 12/01/2017,OPS0276679,395.78,N,N/A,N,N/A
Pendle Borough Council,Operational Services,Supplies and Services,Sub-Contractors,4007,OCS GROUP UK LIMITED,A0072816, 12/01/2017,OPS4005232,-0.93,N,N/A,N,N/A
Pendle Borough Council,Operational Services,Supplies and Services,Sub-Contractors,4007,OCS GROUP UK LIMITED,A0072816, 12/01/2017,OPS4005233,-0.52,N,N/A,N,N/A
Pendle Borough Council,Operational Services,Supplies and Services,Sub-Contractors,4007,OCS GROUP UK LIMITED,A0072816, 12/01/2017,OPS4005236,-0.39,N,N/A,N,N/A
Pendle Borough Council,Operational Services,Supplies and Services,Sub-Contractors,4007,OCS GROUP UK LIMITED,A0072816, 12/01/2017,OPS4005235,-0.13,N,N/A,N,N/A
Pendle Borough Council,Operational Services,Supplies and Services,Sub-Contractors,4007,OCS GROUP UK LIMITED,A0072816, 12/01/2017,OPS0276678,2,N,N/A,N,N/A
Pendle Borough Council,Operational Services,Supplies and Services,Sub-Contractors,4007,OCS GROUP UK LIMITED,A0072816, 12/01/2017,OPS0276756,2.13,N,N/A,N,N/A
Pendle Borough Council,Operational Services,Supplies and Services,Sub-Contractors,4007,OCS GROUP UK LIMITED,A0072816, 12/01/2017,OPS0276677,4,N,N/A,N,N/A
Pendle Borough Council,Operational Services,Supplies and Services,Sub-Contractors,4007,OCS GROUP UK LIMITED,A0072816, 12/01/2017,OPS0276672,6,N,N/A,N,N/A
Pendle Borough Council,Operational Services,Supplies and Services,Sub-Contractors,4007,OCS GROUP UK LIMITED,A0072816, 12/01/2017,OPS0276755,6.39,N,N/A,N,N/A
Pendle Borough Council,Operational Services,Supplies and Services,Sub-Contractors,4007,OCS GROUP UK LIMITED,A0072816, 12/01/2017,OPS0276681,8.52,N,N/A,N,N/A
Pendle Borough Council,Operational Services,Supplies and Services,Sub-Contractors,4007,OCS GROUP UK LIMITED,A0072816, 12/01/2017,OPS0276674,11.99,N,N/A,N,N/A
Pendle Borough Council,Operational Services,Supplies and Services,Sub-Contractors,4007,OCS GROUP UK LIMITED,A0072816, 12/01/2017,OPS0276680,17.03,N,N/A,N,N/A
Pendle Borough Council,Operational Services,Premises Related Expense,Grounds : R & M : Day to Day : Routine,2101,TCS (WASTE) LIMITED,A0072822, 12/01/2017,OPS0276727,70,N,N/A,N,N/A
Pendle Borough Council,Operational Services,Premises Related Expense,Grounds : R & M : Day to Day : Routine,2101,TCS (WASTE) LIMITED,A0072822, 12/01/2017,OPS0276727,70,N,N/A,N,N/A
Pendle Borough Council,Operational Services,Premises Related Expense,Grounds : R & M : Day to Day : Routine,2101,TCS (WASTE) LIMITED,A0072822, 12/01/2017,OPS0276727,70,N,N/A,N,N/A
Pendle Borough Council,Operational Services,Supplies and Services,Sub-Contractors,4007,TCS (WASTE) LIMITED,A0072822, 12/01/2017,OPS0276728,420,N,N/A,N,N/A
Pendle Borough Council,Financial Services,Indirect Employee Expenses,Recruitment,1221,DBS,A0072958, 18/01/2017,AAS0276931,868,N,N/A,N,N/A
Pendle Borough Council,Financial Services,Supplies and Services,Other Expenses,4705,DBS,A0072958, 18/01/2017,AAS0276931,1584,N,N/A,N,N/A
Pendle Borough Council,Housing Regeneration Services,Supplies and Services,Newspapers & Periodicals,4305,MARTINS,A0074550, 12/01/2017,HMR0276682,25.05,N,N/A,N,N/A
Pendle Borough Council,Operational Services,Agency Costs,Refuse Collection DLO,5005,C & C PROCESS SERVERS,A0074728, 12/01/2017,OPS0276652,85,N,N/A,N,N/A
Pendle Borough Council,Housing Regeneration Services,Capital Costs,Capital : Payments,CD14,OCEAN BATHROOMS TILES & HEATING LTD,A0075367, 05/01/2017,HMR0276565,180,N,N/A,N,N/A
Pendle Borough Council,Housing Regeneration Services,Capital Costs,Ren Grant : 1996 Act,CH22,OCEAN BATHROOMS TILES & HEATING LTD,A0075367, 05/01/2017,HMR0276519,4325,N,N/A,N,720.83
Pendle Borough Council,Housing Regeneration Services,Capital Costs,Ren Grant : 1996 Act,CH22,OCEAN BATHROOMS TILES & HEATING LTD,A0075367, 05/01/2017,HMR0276521,8550,N,N/A,N,1425
Pendle Borough Council,Financial Services,Supplies and Services,Subscriptions & Donations,4706,VODAFONE LIMITED,A0076999, 12/01/2017,AAS0276737,2487.3,N,N/A,N,N/A
Pendle Borough Council,Democratic & Legal Services,Supplies and Services,Printing & Stationery,4301,THOMSON REUTERS,A0077400, 12/01/2017,DAL0276719,93.5,N,N/A,N,N/A
Pendle Borough Council,Democratic & Legal Services,Supplies and Services,Printing & Stationery,4301,THOMSON REUTERS,A0077400, 12/01/2017,DAL0276719,93.5,N,N/A,N,N/A
Pendle Borough Council,Planning & Building Control,Supplies and Services,Reference Books Acts,4304,THOMSON REUTERS,A0077400, 12/01/2017,PBC0276712,55,N,N/A,N,N/A
Pendle Borough Council,Planning & Building Control,Supplies and Services,Reference Books Acts,4304,THOMSON REUTERS,A0077400, 12/01/2017,PBC0276712,587.13,N,N/A,N,N/A
Pendle Borough Council,Planning & Building Control,Supplies and Services,Consultants Fees,4401,THOMSON REUTERS,A0077400, 12/01/2017,PBC0276712,1836.87,N,N/A,N,N/A
Pendle Borough Council,Financial Services,Supplies and Services,Other Expenses,4705,RIGHTMOVE.CO.UK,A0077496, 03/01/2017,AAS0276925,312.8,N,N/A,N,N/A
Pendle Borough Council,Financial Services,Capital Costs,Capital : Payments,CD14,RIGHTMOVE.CO.UK,A0077496, 03/01/2017,AAS0276925,607.2,N,N/A,N,N/A
Pendle Borough Council,Economic Development & Tourism,Supplies and Services,EFM Materials,4004,HERITAGE CARDS & SOUVENIRS LTD,A0077997, 12/01/2017,REG0276702,62.29,N,N/A,N,N/A
Pendle Borough Council,Economic Development & Tourism,Supplies and Services,EFM Materials,4004,HERITAGE CARDS & SOUVENIRS LTD,A0077997, 12/01/2017,REG0276704,397.26,N,N/A,N,N/A
Pendle Borough Council,Operational Services,Indirect Employee Expenses,Emp : Medical Expenses,1236,POSTURITE LIMITED,A0078203, 12/01/2017,OPS0276653,74.4,N,N/A,N,N/A
Pendle Borough Council,Operational Services,Indirect Employee Expenses,Emp : Medical Expenses,1236,POSTURITE LIMITED,A0078203, 12/01/2017,OPS0276653,845,N,N/A,N,N/A
Pendle Borough Council,Housing Regeneration Services,Premises Related Expense,Passenger Shelter Cleaning,2606,JANDON CLEANING SERVICES,A0079028, 12/01/2017,HMR0276686,140,N,N/A,N,N/A
Pendle Borough Council,Housing Regeneration Services,Premises Related Expense,Passenger Shelter Cleaning,2606,JANDON CLEANING SERVICES,A0079028, 12/01/2017,HMR0276686,100,N,N/A,N,N/A
Pendle Borough Council,Housing Regeneration Services,Premises Related Expense,Passenger Shelter Cleaning,2606,JANDON CLEANING SERVICES,A0079028, 12/01/2017,HMR0276686,160,N,N/A,N,N/A
Pendle Borough Council,Housing Regeneration Services,Supplies and Services,EFM : Other Equipment,4003,KINGS WASHING MACHINE RENTALS,A0079878, 12/01/2017,HMR0276718,55,N,N/A,N,N/A
Pendle Borough Council,Democratic & Legal Services,Supplies and Services,Consultants Fees,4401,HILL DICKINSON LLP,A0080232, 26/01/2017,DAL0276986,1892.5,N,N/A,N,N/A
Pendle Borough Council,Economic Development & Tourism,Supplies and Services,Other Expenses,4705,HILL DICKINSON LLP,A0080232, 26/01/2017,REG0276989,1072.5,N,N/A,N,N/A
Pendle Borough Council,Human Resources,Indirect Employee Expenses,Emp : Medical Expenses,1236,REDACTED - PERSONAL DATA,A0081260, 26/01/2017,PER0277009,40,N,N/A,N,N/A
Pendle Borough Council,Operational Services,Transport Related Expense,Tprt : Repairs : General,3105,BLACK HORSE CONTRACT HIRE - FLEET 564391,A0081350, 05/01/2017,OPS0276532,14.88,N,N/A,N,N/A
Pendle Borough Council,Operational Services,Transport Related Expense,Tprt : Annual Hire Charge,3601,BLACK HORSE CONTRACT HIRE - FLEET 564391,A0081350, 19/01/2017,OPS0276875,339.38,N,N/A,N,N/A
Pendle Borough Council,Engineering & Special Projects,Capital Costs,Capital : Payments,CD14,HODGE HOUSE RESIDENTS ASSOCIATION,A0081652, 19/01/2017,HED0276909,400,N,N/A,N,N/A
Pendle Borough Council,Human Resources,Supplies and Services,Seminars etc All Costs,4601,IMPROVEMENT DEVELOPMENT GROWTH LTD,A0082296, 19/01/2017,PER0276858,978.8,N,N/A,N,N/A
Pendle Borough Council,Engineering & Special Projects,Capital Costs,Capital : Payments,CD14,BARLEY WITH WHEATLEY BOOTH PC,A0082828, 19/01/2017,HED0276841,1000,N,N/A,N,N/A
Pendle Borough Council,Financial Services,Supplies and Services,Allpay,4422,ALLPAY LIMITED,A0084372, 12/01/2017,AAS0276744,10.01,N,N/A,N,N/A
Pendle Borough Council,Financial Services,Supplies and Services,Allpay,4422,ALLPAY LIMITED,A0084372, 12/01/2017,AAS0276748,24.23,N,N/A,N,N/A
Pendle Borough Council,Financial Services,Supplies and Services,Allpay,4422,ALLPAY LIMITED,A0084372, 26/01/2017,AAS0277018,29.82,N,N/A,N,N/A
Pendle Borough Council,Financial Services,Supplies and Services,Allpay,4422,ALLPAY LIMITED,A0084372, 12/01/2017,AAS0276747,31.11,N,N/A,N,N/A
Pendle Borough Council,Financial Services,Supplies and Services,Allpay,4422,ALLPAY LIMITED,A0084372, 26/01/2017,AAS0277014,1453.14,N,N/A,N,N/A
Pendle Borough Council,Revenues Services,,Fees Income : Non-VATable,9302,WILKIN CHAPMAN LLP,A0084376, 26/01/2017,TRE0277028,133,N,N/A,N,N/A
Pendle Borough Council,Revenues Services,,Fees Income : Non-VATable,9302,WILKIN CHAPMAN LLP,A0084376, 26/01/2017,TRE0277028,250.5,N,N/A,N,N/A
Pendle Borough Council,Economic Development & Tourism,Capital Costs,Capital : Payments,CD14,KIMORA,A0084804, 12/01/2017,REG0276705,508.69,N,N/A,N,N/A
Pendle Borough Council,Environmental Health Services,Supplies and Services,Consultants Fees,4401,RODNEY CAPSTICK BUILDING MAINTENANCE,A0085112, 19/01/2017,ENV0276850,58,N,N/A,N,N/A
Pendle Borough Council,Engineering & Special Projects,Capital Costs,Capital : Payments,CD14,MARSDEN PTFA,A0085357, 19/01/2017,HED0276840,250,N,N/A,N,N/A
Pendle Borough Council,Chief Executives Policy Unit,Supplies and Services,Other Expenses,4705,REDACTED - PERSONAL DATA,A0085472, 26/01/2017,COR0276923,61.2,N,N/A,N,N/A
Pendle Borough Council,Engineering & Special Projects,Premises Related Expense,Grounds : R & M : Day to Day : Routine,2101,KEVIN WILKINSON LANDSCAPES LTD,A0085660, 19/01/2017,HED0276839,200,N,N/A,N,N/A
Pendle Borough Council,Operational Services,Transport Related Expense,Diesel Oil,3202,T SPLITT T/A NWF FUELS LIMITED,A0087626, 05/01/2017,OPS0276524,1933.2,N,N/A,N,N/A
Pendle Borough Council,Revenues Services,Supplies and Services,Consultants Fees,4401,JBW GROUP LIMITED,A0088708, 12/01/2017,TRE0276716,110,N,N/A,N,N/A
Pendle Borough Council,Human Resources,Indirect Employee Expenses,Emp : Medical Expenses,1236,HEALTH BUSINESS LIMITED,A0088933, 26/01/2017,PER0277008,444,N,N/A,N,N/A
Pendle Borough Council,Property Services,Capital Costs,Capital : Payments,CD14,CATCHPOINT (UK) LTD,A0089500, 05/01/2017,EST0276582,2880,N,N/A,N,N/A
Pendle Borough Council,Operational Services,Indirect Employee Expenses,Lone Worker Monitoring Service,1270,SOLOPROTECT LIMITED,A0089719, 05/01/2017,OPS0276609,379.4,N,N/A,N,N/A
Pendle Borough Council,Environmental Health Services,Supplies and Services,Other Expenses,4705,SOLOPROTECT LIMITED,A0089719, 05/01/2017,ENV0276563,42.52,N,N/A,N,N/A
Pendle Borough Council,Engineering & Special Projects,Supplies and Services,Consultants Fees,4401,O`CALLAGHAN LIMITED,A0090052, 19/01/2017,HED0276815,350,N,N/A,N,N/A
Pendle Borough Council,Operational Services,Agency Staff,Emp : Agency Wages,1004,RAPID RECRUIT LIMITED,A0090080, 12/01/2017,OPS0276657,672.53,N,N/A,N,N/A
Pendle Borough Council,Operational Services,Agency Staff,Emp : Agency Wages,1004,RAPID RECRUIT LIMITED,A0090080, 12/01/2017,OPS0276661,996.55,N,N/A,N,N/A
Pendle Borough Council,Operational Services,Agency Staff,Emp : Agency Wages,1004,RAPID RECRUIT LIMITED,A0090080, 05/01/2017,OPS0276527,1598.73,N,N/A,N,N/A
Pendle Borough Council,Operational Services,Agency Staff,Emp : Agency Wages,1004,RAPID RECRUIT LIMITED,A0090080, 19/01/2017,OPS0276820,1611.12,N,N/A,N,N/A
Pendle Borough Council,Operational Services,Agency Staff,Emp : Agency Wages,1004,RAPID RECRUIT LIMITED,A0090080, 19/01/2017,OPS0276821,3264.4,N,N/A,N,N/A
Pendle Borough Council,Operational Services,Agency Staff,Emp : Agency Wages,1004,RAPID RECRUIT LIMITED,A0090080, 12/01/2017,OPS0276661,1676.77,N,N/A,N,N/A
Pendle Borough Council,Operational Services,Agency Staff,Emp : Agency Wages,1004,RAPID RECRUIT LIMITED,A0090080, 05/01/2017,OPS0276527,1685.13,N,N/A,N,N/A
Pendle Borough Council,Operational Services,Agency Staff,Emp : Agency Wages,1004,RAPID RECRUIT LIMITED,A0090080, 12/01/2017,OPS0276657,1827.64,N,N/A,N,N/A
Pendle Borough Council,Operational Services,Agency Staff,Emp : Agency Wages,1004,RAPID RECRUIT LIMITED,A0090080, 19/01/2017,OPS0276820,2133.38,N,N/A,N,N/A
Pendle Borough Council,Operational Services,Agency Staff,Emp : Agency Wages,1004,RAPID RECRUIT LIMITED,A0090080, 19/01/2017,OPS0276821,2883.4,N,N/A,N,N/A
Pendle Borough Council,Operational Services,Agency Staff,Emp : Agency Wages,1004,RAPID RECRUIT LIMITED,A0090080, 05/01/2017,OPS0276527,294.98,N,N/A,N,N/A
Pendle Borough Council,Operational Services,Agency Staff,Emp : Agency Wages,1004,RAPID RECRUIT LIMITED,A0090080, 19/01/2017,OPS0276820,780.8,N,N/A,N,N/A
Pendle Borough Council,Operational Services,Agency Staff,Emp : Agency Wages,1004,RAPID RECRUIT LIMITED,A0090080, 12/01/2017,OPS0276657,878.48,N,N/A,N,N/A
Pendle Borough Council,Operational Services,Agency Staff,Emp : Agency Wages,1004,RAPID RECRUIT LIMITED,A0090080, 12/01/2017,OPS0276661,937.79,N,N/A,N,N/A
Pendle Borough Council,Operational Services,Agency Staff,Emp : Agency Wages,1004,RAPID RECRUIT LIMITED,A0090080, 19/01/2017,OPS0276821,2140.91,N,N/A,N,N/A
Pendle Borough Council,Chief Executives Policy Unit,Supplies and Services,Other Expenses,4705,SALFORD PROFESSIONAL DEVELOPMENT LTD,A0090184, 26/01/2017,COR0276947,99,N,N/A,N,N/A
Pendle Borough Council,Financial Services,Transport Related Expense,Diesel Oil,3202,FUELMATE LTD,A0090265, 31/01/2017,AAS0277357,2.89,N,N/A,N,N/A
Pendle Borough Council,Financial Services,Transport Related Expense,Diesel Oil,3202,FUELMATE LTD,A0090265, 31/01/2017,AAS0277357,9.51,N,N/A,N,N/A
Pendle Borough Council,Financial Services,Transport Related Expense,Diesel Oil,3202,FUELMATE LTD,A0090265, 31/01/2017,AAS0277357,16.46,N,N/A,N,N/A
Pendle Borough Council,Financial Services,Transport Related Expense,Diesel Oil,3202,FUELMATE LTD,A0090265, 31/01/2017,AAS0277357,16.82,N,N/A,N,N/A
Pendle Borough Council,Financial Services,Transport Related Expense,Diesel Oil,3202,FUELMATE LTD,A0090265, 18/01/2017,AAS0276938,29.62,N,N/A,N,N/A
Pendle Borough Council,Financial Services,Transport Related Expense,Diesel Oil,3202,FUELMATE LTD,A0090265, 24/01/2017,AAS0277173,37.17,N,N/A,N,N/A
Pendle Borough Council,Financial Services,Transport Related Expense,Diesel Oil,3202,FUELMATE LTD,A0090265, 03/01/2017,AAS0276936,39.51,N,N/A,N,N/A
Pendle Borough Council,Financial Services,Transport Related Expense,Diesel Oil,3202,FUELMATE LTD,A0090265, 18/01/2017,AAS0276938,45.14,N,N/A,N,N/A
Pendle Borough Council,Financial Services,Transport Related Expense,Diesel Oil,3202,FUELMATE LTD,A0090265, 03/01/2017,AAS0276936,45.78,N,N/A,N,N/A
Pendle Borough Council,Financial Services,Transport Related Expense,Diesel Oil,3202,FUELMATE LTD,A0090265, 11/01/2017,AAS0276937,46.33,N,N/A,N,N/A
Pendle Borough Council,Financial Services,Transport Related Expense,Diesel Oil,3202,FUELMATE LTD,A0090265, 24/01/2017,AAS0277173,49.4,N,N/A,N,N/A
Pendle Borough Council,Financial Services,Transport Related Expense,Diesel Oil,3202,FUELMATE LTD,A0090265, 31/01/2017,AAS0277357,49.42,N,N/A,N,N/A
Pendle Borough Council,Financial Services,Transport Related Expense,Diesel Oil,3202,FUELMATE LTD,A0090265, 24/01/2017,AAS0277173,50.01,N,N/A,N,N/A
Pendle Borough Council,Financial Services,Transport Related Expense,Diesel Oil,3202,FUELMATE LTD,A0090265, 24/01/2017,AAS0277173,53.72,N,N/A,N,N/A
Pendle Borough Council,Financial Services,Transport Related Expense,Diesel Oil,3202,FUELMATE LTD,A0090265, 11/01/2017,AAS0276937,54.22,N,N/A,N,N/A
Pendle Borough Council,Financial Services,Transport Related Expense,Diesel Oil,3202,FUELMATE LTD,A0090265, 31/01/2017,AAS0277357,54.91,N,N/A,N,N/A
Pendle Borough Council,Financial Services,Transport Related Expense,Diesel Oil,3202,FUELMATE LTD,A0090265, 31/01/2017,AAS0277357,56.03,N,N/A,N,N/A
Pendle Borough Council,Financial Services,Transport Related Expense,Diesel Oil,3202,FUELMATE LTD,A0090265, 03/01/2017,AAS0276936,56.27,N,N/A,N,N/A
Pendle Borough Council,Financial Services,Transport Related Expense,Diesel Oil,3202,FUELMATE LTD,A0090265, 18/01/2017,AAS0276938,60.34,N,N/A,N,N/A
Pendle Borough Council,Financial Services,Transport Related Expense,Diesel Oil,3202,FUELMATE LTD,A0090265, 18/01/2017,AAS0276938,64.29,N,N/A,N,N/A
Pendle Borough Council,Financial Services,Transport Related Expense,Diesel Oil,3202,FUELMATE LTD,A0090265, 31/01/2017,AAS0277357,64.3,N,N/A,N,N/A
Pendle Borough Council,Financial Services,Transport Related Expense,Diesel Oil,3202,FUELMATE LTD,A0090265, 18/01/2017,AAS0276938,69.53,N,N/A,N,N/A
Pendle Borough Council,Financial Services,Transport Related Expense,Diesel Oil,3202,FUELMATE LTD,A0090265, 24/01/2017,AAS0277173,70.85,N,N/A,N,N/A
Pendle Borough Council,Financial Services,Transport Related Expense,Diesel Oil,3202,FUELMATE LTD,A0090265, 03/01/2017,AAS0276936,73.25,N,N/A,N,N/A
Pendle Borough Council,Financial Services,Transport Related Expense,Diesel Oil,3202,FUELMATE LTD,A0090265, 24/01/2017,AAS0277173,76.65,N,N/A,N,N/A
Pendle Borough Council,Financial Services,Transport Related Expense,Diesel Oil,3202,FUELMATE LTD,A0090265, 18/01/2017,AAS0276938,86.01,N,N/A,N,N/A
Pendle Borough Council,Financial Services,Transport Related Expense,Diesel Oil,3202,FUELMATE LTD,A0090265, 11/01/2017,AAS0276937,93.51,N,N/A,N,N/A
Pendle Borough Council,Financial Services,Transport Related Expense,Diesel Oil,3202,FUELMATE LTD,A0090265, 11/01/2017,AAS0276937,97.51,N,N/A,N,N/A
Pendle Borough Council,Financial Services,Transport Related Expense,Diesel Oil,3202,FUELMATE LTD,A0090265, 24/01/2017,AAS0277173,98.52,N,N/A,N,N/A
Pendle Borough Council,Financial Services,Transport Related Expense,Diesel Oil,3202,FUELMATE LTD,A0090265, 24/01/2017,AAS0277173,131.02,N,N/A,N,N/A
Pendle Borough Council,Financial Services,Transport Related Expense,Diesel Oil,3202,FUELMATE LTD,A0090265, 31/01/2017,AAS0277357,150.46,N,N/A,N,N/A
Pendle Borough Council,Financial Services,Transport Related Expense,Diesel Oil,3202,FUELMATE LTD,A0090265, 24/01/2017,AAS0277173,149.36,N,N/A,N,N/A
Pendle Borough Council,Financial Services,Transport Related Expense,Diesel Oil,3202,FUELMATE LTD,A0090265, 31/01/2017,AAS0277357,278.71,N,N/A,N,N/A
Pendle Borough Council,Financial Services,Transport Related Expense,Diesel Oil,3202,FUELMATE LTD,A0090265, 18/01/2017,AAS0276938,297.94,N,N/A,N,N/A
Pendle Borough Council,Financial Services,Transport Related Expense,Diesel Oil,3202,FUELMATE LTD,A0090265, 03/01/2017,AAS0276936,310.43,N,N/A,N,N/A
Pendle Borough Council,Financial Services,Transport Related Expense,Diesel Oil,3202,FUELMATE LTD,A0090265, 11/01/2017,AAS0276937,310.85,N,N/A,N,N/A
Pendle Borough Council,Financial Services,Transport Related Expense,Diesel Oil,3202,FUELMATE LTD,A0090265, 24/01/2017,AAS0277173,89.58,N,N/A,N,N/A
Pendle Borough Council,Financial Services,Transport Related Expense,Diesel Oil,3202,FUELMATE LTD,A0090265, 31/01/2017,AAS0277357,200.07,N,N/A,N,N/A
Pendle Borough Council,Financial Services,Transport Related Expense,Diesel Oil,3202,FUELMATE LTD,A0090265, 03/01/2017,AAS0276936,202.45,N,N/A,N,N/A
Pendle Borough Council,Financial Services,Transport Related Expense,Diesel Oil,3202,FUELMATE LTD,A0090265, 11/01/2017,AAS0276937,213.98,N,N/A,N,N/A
Pendle Borough Council,Financial Services,Transport Related Expense,Diesel Oil,3202,FUELMATE LTD,A0090265, 18/01/2017,AAS0276938,230.54,N,N/A,N,N/A
Pendle Borough Council,Financial Services,Transport Related Expense,Diesel Oil,3202,FUELMATE LTD,A0090265, 24/01/2017,AAS0277173,126.91,N,N/A,N,N/A
Pendle Borough Council,Financial Services,Transport Related Expense,Diesel Oil,3202,FUELMATE LTD,A0090265, 18/01/2017,AAS0276938,173.33,N,N/A,N,N/A
Pendle Borough Council,Financial Services,Transport Related Expense,Diesel Oil,3202,FUELMATE LTD,A0090265, 11/01/2017,AAS0276937,182.43,N,N/A,N,N/A
Pendle Borough Council,Financial Services,Transport Related Expense,Diesel Oil,3202,FUELMATE LTD,A0090265, 03/01/2017,AAS0276936,184.64,N,N/A,N,N/A
Pendle Borough Council,Financial Services,Transport Related Expense,Diesel Oil,3202,FUELMATE LTD,A0090265, 31/01/2017,AAS0277357,295.59,N,N/A,N,N/A
Pendle Borough Council,Financial Services,Transport Related Expense,Diesel Oil,3202,FUELMATE LTD,A0090265, 24/01/2017,AAS0277173,136.22,N,N/A,N,N/A
Pendle Borough Council,Financial Services,Transport Related Expense,Diesel Oil,3202,FUELMATE LTD,A0090265, 11/01/2017,AAS0276937,170.03,N,N/A,N,N/A
Pendle Borough Council,Financial Services,Transport Related Expense,Diesel Oil,3202,FUELMATE LTD,A0090265, 18/01/2017,AAS0276938,230.71,N,N/A,N,N/A
Pendle Borough Council,Financial Services,Transport Related Expense,Diesel Oil,3202,FUELMATE LTD,A0090265, 31/01/2017,AAS0277357,233.19,N,N/A,N,N/A
Pendle Borough Council,Financial Services,Transport Related Expense,Diesel Oil,3202,FUELMATE LTD,A0090265, 03/01/2017,AAS0276936,250.55,N,N/A,N,N/A
Pendle Borough Council,Financial Services,Transport Related Expense,Diesel Oil,3202,FUELMATE LTD,A0090265, 11/01/2017,AAS0276937,142.01,N,N/A,N,N/A
Pendle Borough Council,Financial Services,Transport Related Expense,Diesel Oil,3202,FUELMATE LTD,A0090265, 24/01/2017,AAS0277173,169.57,N,N/A,N,N/A
Pendle Borough Council,Financial Services,Transport Related Expense,Diesel Oil,3202,FUELMATE LTD,A0090265, 18/01/2017,AAS0276938,197.21,N,N/A,N,N/A
Pendle Borough Council,Financial Services,Transport Related Expense,Diesel Oil,3202,FUELMATE LTD,A0090265, 03/01/2017,AAS0276936,233.9,N,N/A,N,N/A
Pendle Borough Council,Financial Services,Transport Related Expense,Diesel Oil,3202,FUELMATE LTD,A0090265, 31/01/2017,AAS0277357,245.52,N,N/A,N,N/A
Pendle Borough Council,Financial Services,Transport Related Expense,Diesel Oil,3202,FUELMATE LTD,A0090265, 24/01/2017,AAS0277173,50.35,N,N/A,N,N/A
Pendle Borough Council,Financial Services,Transport Related Expense,Diesel Oil,3202,FUELMATE LTD,A0090265, 11/01/2017,AAS0276937,152.28,N,N/A,N,N/A
Pendle Borough Council,Financial Services,Transport Related Expense,Diesel Oil,3202,FUELMATE LTD,A0090265, 03/01/2017,AAS0276936,171.5,N,N/A,N,N/A
Pendle Borough Council,Financial Services,Transport Related Expense,Diesel Oil,3202,FUELMATE LTD,A0090265, 18/01/2017,AAS0276938,172.07,N,N/A,N,N/A
Pendle Borough Council,Financial Services,Transport Related Expense,Diesel Oil,3202,FUELMATE LTD,A0090265, 31/01/2017,AAS0277357,197.17,N,N/A,N,N/A
Pendle Borough Council,Financial Services,Transport Related Expense,Diesel Oil,3202,FUELMATE LTD,A0090265, 11/01/2017,AAS0276937,53.5,N,N/A,N,N/A
Pendle Borough Council,Financial Services,Transport Related Expense,Diesel Oil,3202,FUELMATE LTD,A0090265, 03/01/2017,AAS0276936,55.22,N,N/A,N,N/A
Pendle Borough Council,Financial Services,Transport Related Expense,Diesel Oil,3202,FUELMATE LTD,A0090265, 31/01/2017,AAS0277357,55.68,N,N/A,N,N/A
Pendle Borough Council,Financial Services,Transport Related Expense,Diesel Oil,3202,FUELMATE LTD,A0090265, 18/01/2017,AAS0276938,57,N,N/A,N,N/A
Pendle Borough Council,Financial Services,Transport Related Expense,Diesel Oil,3202,FUELMATE LTD,A0090265, 24/01/2017,AAS0277173,57.45,N,N/A,N,N/A
Pendle Borough Council,Financial Services,Transport Related Expense,Diesel Oil,3202,FUELMATE LTD,A0090265, 24/01/2017,AAS0277173,94.39,N,N/A,N,N/A
Pendle Borough Council,Financial Services,Transport Related Expense,Diesel Oil,3202,FUELMATE LTD,A0090265, 11/01/2017,AAS0276937,126.12,N,N/A,N,N/A
Pendle Borough Council,Financial Services,Transport Related Expense,Diesel Oil,3202,FUELMATE LTD,A0090265, 03/01/2017,AAS0276936,135.4,N,N/A,N,N/A
Pendle Borough Council,Financial Services,Transport Related Expense,Diesel Oil,3202,FUELMATE LTD,A0090265, 18/01/2017,AAS0276938,185.52,N,N/A,N,N/A
Pendle Borough Council,Financial Services,Transport Related Expense,Diesel Oil,3202,FUELMATE LTD,A0090265, 31/01/2017,AAS0277357,210.03,N,N/A,N,N/A
Pendle Borough Council,Financial Services,Transport Related Expense,Diesel Oil,3202,FUELMATE LTD,A0090265, 11/01/2017,AAS0276937,137.24,N,N/A,N,N/A
Pendle Borough Council,Financial Services,Transport Related Expense,Diesel Oil,3202,FUELMATE LTD,A0090265, 03/01/2017,AAS0276936,205.18,N,N/A,N,N/A
Pendle Borough Council,Financial Services,Transport Related Expense,Diesel Oil,3202,FUELMATE LTD,A0090265, 18/01/2017,AAS0276938,221.43,N,N/A,N,N/A
Pendle Borough Council,Financial Services,Transport Related Expense,Diesel Oil,3202,FUELMATE LTD,A0090265, 31/01/2017,AAS0277357,222.39,N,N/A,N,N/A
Pendle Borough Council,Financial Services,Transport Related Expense,Diesel Oil,3202,FUELMATE LTD,A0090265, 31/01/2017,AAS0277357,71.88,N,N/A,N,N/A
Pendle Borough Council,Financial Services,Transport Related Expense,Diesel Oil,3202,FUELMATE LTD,A0090265, 11/01/2017,AAS0276937,100.23,N,N/A,N,N/A
Pendle Borough Council,Financial Services,Transport Related Expense,Diesel Oil,3202,FUELMATE LTD,A0090265, 24/01/2017,AAS0277173,106.68,N,N/A,N,N/A
Pendle Borough Council,Financial Services,Transport Related Expense,Diesel Oil,3202,FUELMATE LTD,A0090265, 03/01/2017,AAS0276936,255.71,N,N/A,N,N/A
Pendle Borough Council,Financial Services,Transport Related Expense,Diesel Oil,3202,FUELMATE LTD,A0090265, 18/01/2017,AAS0276938,302.31,N,N/A,N,N/A
Pendle Borough Council,Financial Services,Transport Related Expense,Diesel Oil,3202,FUELMATE LTD,A0090265, 24/01/2017,AAS0277173,83.05,N,N/A,N,N/A
Pendle Borough Council,Financial Services,Transport Related Expense,Diesel Oil,3202,FUELMATE LTD,A0090265, 03/01/2017,AAS0276936,161.33,N,N/A,N,N/A
Pendle Borough Council,Financial Services,Transport Related Expense,Diesel Oil,3202,FUELMATE LTD,A0090265, 11/01/2017,AAS0276937,211.26,N,N/A,N,N/A
Pendle Borough Council,Financial Services,Transport Related Expense,Diesel Oil,3202,FUELMATE LTD,A0090265, 31/01/2017,AAS0277357,221.33,N,N/A,N,N/A
Pendle Borough Council,Financial Services,Transport Related Expense,Diesel Oil,3202,FUELMATE LTD,A0090265, 18/01/2017,AAS0276938,222.07,N,N/A,N,N/A
Pendle Borough Council,Financial Services,Transport Related Expense,Diesel Oil,3202,FUELMATE LTD,A0090265, 24/01/2017,AAS0277173,70.69,N,N/A,N,N/A
Pendle Borough Council,Financial Services,Transport Related Expense,Diesel Oil,3202,FUELMATE LTD,A0090265, 18/01/2017,AAS0276938,146.52,N,N/A,N,N/A
Pendle Borough Council,Financial Services,Transport Related Expense,Diesel Oil,3202,FUELMATE LTD,A0090265, 03/01/2017,AAS0276936,152.65,N,N/A,N,N/A
Pendle Borough Council,Financial Services,Transport Related Expense,Diesel Oil,3202,FUELMATE LTD,A0090265, 31/01/2017,AAS0277357,188.91,N,N/A,N,N/A
Pendle Borough Council,Financial Services,Transport Related Expense,Diesel Oil,3202,FUELMATE LTD,A0090265, 11/01/2017,AAS0276937,239.52,N,N/A,N,N/A
Pendle Borough Council,Financial Services,Transport Related Expense,Diesel Oil,3202,FUELMATE LTD,A0090265, 24/01/2017,AAS0277173,103.13,N,N/A,N,N/A
Pendle Borough Council,Financial Services,Transport Related Expense,Diesel Oil,3202,FUELMATE LTD,A0090265, 11/01/2017,AAS0276937,182.05,N,N/A,N,N/A
Pendle Borough Council,Financial Services,Transport Related Expense,Diesel Oil,3202,FUELMATE LTD,A0090265, 03/01/2017,AAS0276936,188.1,N,N/A,N,N/A
Pendle Borough Council,Financial Services,Transport Related Expense,Diesel Oil,3202,FUELMATE LTD,A0090265, 31/01/2017,AAS0277357,193.16,N,N/A,N,N/A
Pendle Borough Council,Financial Services,Transport Related Expense,Diesel Oil,3202,FUELMATE LTD,A0090265, 18/01/2017,AAS0276938,211.39,N,N/A,N,N/A
Pendle Borough Council,Financial Services,Transport Related Expense,Diesel Oil,3202,FUELMATE LTD,A0090265, 24/01/2017,AAS0277173,24.92,N,N/A,N,N/A
Pendle Borough Council,Financial Services,Transport Related Expense,Diesel Oil,3202,FUELMATE LTD,A0090265, 03/01/2017,AAS0276936,88.19,N,N/A,N,N/A
Pendle Borough Council,Financial Services,Transport Related Expense,Diesel Oil,3202,FUELMATE LTD,A0090265, 31/01/2017,AAS0277357,111.6,N,N/A,N,N/A
Pendle Borough Council,Financial Services,Transport Related Expense,Diesel Oil,3202,FUELMATE LTD,A0090265, 18/01/2017,AAS0276938,111.88,N,N/A,N,N/A
Pendle Borough Council,Financial Services,Transport Related Expense,Diesel Oil,3202,FUELMATE LTD,A0090265, 11/01/2017,AAS0276937,146.48,N,N/A,N,N/A
Pendle Borough Council,Financial Services,Transport Related Expense,Diesel Oil,3202,FUELMATE LTD,A0090265, 24/01/2017,AAS0277173,70.65,N,N/A,N,N/A
Pendle Borough Council,Financial Services,Transport Related Expense,Diesel Oil,3202,FUELMATE LTD,A0090265, 18/01/2017,AAS0276938,83.95,N,N/A,N,N/A
Pendle Borough Council,Financial Services,Transport Related Expense,Diesel Oil,3202,FUELMATE LTD,A0090265, 03/01/2017,AAS0276936,84,N,N/A,N,N/A
Pendle Borough Council,Financial Services,Transport Related Expense,Diesel Oil,3202,FUELMATE LTD,A0090265, 11/01/2017,AAS0276937,101.71,N,N/A,N,N/A
Pendle Borough Council,Financial Services,Transport Related Expense,Diesel Oil,3202,FUELMATE LTD,A0090265, 31/01/2017,AAS0277357,125.29,N,N/A,N,N/A
Pendle Borough Council,Financial Services,Transport Related Expense,Diesel Oil,3202,FUELMATE LTD,A0090265, 24/01/2017,AAS0277173,6.39,N,N/A,N,N/A
Pendle Borough Council,Financial Services,Transport Related Expense,Diesel Oil,3202,FUELMATE LTD,A0090265, 18/01/2017,AAS0276938,52.18,N,N/A,N,N/A
Pendle Borough Council,Financial Services,Transport Related Expense,Diesel Oil,3202,FUELMATE LTD,A0090265, 18/01/2017,AAS0276938,59.09,N,N/A,N,N/A
Pendle Borough Council,Financial Services,Transport Related Expense,Diesel Oil,3202,FUELMATE LTD,A0090265, 18/01/2017,AAS0276938,69.97,N,N/A,N,N/A
Pendle Borough Council,Financial Services,Transport Related Expense,Diesel Oil,3202,FUELMATE LTD,A0090265, 11/01/2017,AAS0276937,70.24,N,N/A,N,N/A
Pendle Borough Council,Financial Services,Transport Related Expense,Diesel Oil,3202,FUELMATE LTD,A0090265, 18/01/2017,AAS0276938,70.76,N,N/A,N,N/A
Pendle Borough Council,Financial Services,Transport Related Expense,Diesel Oil,3202,FUELMATE LTD,A0090265, 03/01/2017,AAS0276936,77.48,N,N/A,N,N/A
Pendle Borough Council,Financial Services,Transport Related Expense,Diesel Oil,3202,FUELMATE LTD,A0090265, 31/01/2017,AAS0277357,78.69,N,N/A,N,N/A
Pendle Borough Council,Financial Services,Transport Related Expense,Diesel Oil,3202,FUELMATE LTD,A0090265, 31/01/2017,AAS0277357,83.74,N,N/A,N,N/A
Pendle Borough Council,Financial Services,Transport Related Expense,Diesel Oil,3202,FUELMATE LTD,A0090265, 31/01/2017,AAS0277357,95.01,N,N/A,N,N/A
Pendle Borough Council,Financial Services,Transport Related Expense,Diesel Oil,3202,FUELMATE LTD,A0090265, 31/01/2017,AAS0277357,96.88,N,N/A,N,N/A
Pendle Borough Council,Financial Services,Transport Related Expense,Diesel Oil,3202,FUELMATE LTD,A0090265, 31/01/2017,AAS0277357,121.33,N,N/A,N,N/A
Pendle Borough Council,Financial Services,Transport Related Expense,Diesel Oil,3202,FUELMATE LTD,A0090265, 24/01/2017,AAS0277173,48.04,N,N/A,N,N/A
Pendle Borough Council,Financial Services,Transport Related Expense,Diesel Oil,3202,FUELMATE LTD,A0090265, 03/01/2017,AAS0276936,87.05,N,N/A,N,N/A
Pendle Borough Council,Financial Services,Transport Related Expense,Diesel Oil,3202,FUELMATE LTD,A0090265, 18/01/2017,AAS0276938,105.74,N,N/A,N,N/A
Pendle Borough Council,Financial Services,Transport Related Expense,Diesel Oil,3202,FUELMATE LTD,A0090265, 31/01/2017,AAS0277357,107.97,N,N/A,N,N/A
Pendle Borough Council,Financial Services,Transport Related Expense,Diesel Oil,3202,FUELMATE LTD,A0090265, 11/01/2017,AAS0276937,172.02,N,N/A,N,N/A
Pendle Borough Council,Financial Services,Transport Related Expense,Diesel Oil,3202,FUELMATE LTD,A0090265, 24/01/2017,AAS0277173,27.41,N,N/A,N,N/A
Pendle Borough Council,Financial Services,Transport Related Expense,Diesel Oil,3202,FUELMATE LTD,A0090265, 31/01/2017,AAS0277357,57.91,N,N/A,N,N/A
Pendle Borough Council,Financial Services,Transport Related Expense,Diesel Oil,3202,FUELMATE LTD,A0090265, 18/01/2017,AAS0276938,151.46,N,N/A,N,N/A
Pendle Borough Council,Financial Services,Transport Related Expense,Diesel Oil,3202,FUELMATE LTD,A0090265, 11/01/2017,AAS0276937,152.68,N,N/A,N,N/A
Pendle Borough Council,Financial Services,Transport Related Expense,Diesel Oil,3202,FUELMATE LTD,A0090265, 03/01/2017,AAS0276936,159.56,N,N/A,N,N/A
Pendle Borough Council,Financial Services,Transport Related Expense,Diesel Oil,3202,FUELMATE LTD,A0090265, 24/01/2017,AAS0277173,37.68,N,N/A,N,N/A
Pendle Borough Council,Financial Services,Transport Related Expense,Diesel Oil,3202,FUELMATE LTD,A0090265, 03/01/2017,AAS0276936,55.8,N,N/A,N,N/A
Pendle Borough Council,Financial Services,Transport Related Expense,Diesel Oil,3202,FUELMATE LTD,A0090265, 11/01/2017,AAS0276937,94.95,N,N/A,N,N/A
Pendle Borough Council,Financial Services,Transport Related Expense,Diesel Oil,3202,FUELMATE LTD,A0090265, 18/01/2017,AAS0276938,148.85,N,N/A,N,N/A
Pendle Borough Council,Financial Services,Transport Related Expense,Diesel Oil,3202,FUELMATE LTD,A0090265, 31/01/2017,AAS0277357,166.41,N,N/A,N,N/A
Pendle Borough Council,Financial Services,Transport Related Expense,Diesel Oil,3202,FUELMATE LTD,A0090265, 24/01/2017,AAS0277173,19.2,N,N/A,N,N/A
Pendle Borough Council,Financial Services,Transport Related Expense,Diesel Oil,3202,FUELMATE LTD,A0090265, 03/01/2017,AAS0276936,86.41,N,N/A,N,N/A
Pendle Borough Council,Financial Services,Transport Related Expense,Diesel Oil,3202,FUELMATE LTD,A0090265, 11/01/2017,AAS0276937,130.72,N,N/A,N,N/A
Pendle Borough Council,Financial Services,Transport Related Expense,Diesel Oil,3202,FUELMATE LTD,A0090265, 18/01/2017,AAS0276938,148.46,N,N/A,N,N/A
Pendle Borough Council,Financial Services,Transport Related Expense,Diesel Oil,3202,FUELMATE LTD,A0090265, 31/01/2017,AAS0277357,177,N,N/A,N,N/A
Pendle Borough Council,Financial Services,Transport Related Expense,Diesel Oil,3202,FUELMATE LTD,A0090265, 24/01/2017,AAS0277173,41.04,N,N/A,N,N/A
Pendle Borough Council,Financial Services,Transport Related Expense,Diesel Oil,3202,FUELMATE LTD,A0090265, 31/01/2017,AAS0277357,128.9,N,N/A,N,N/A
Pendle Borough Council,Financial Services,Transport Related Expense,Diesel Oil,3202,FUELMATE LTD,A0090265, 03/01/2017,AAS0276936,144.36,N,N/A,N,N/A
Pendle Borough Council,Financial Services,Transport Related Expense,Diesel Oil,3202,FUELMATE LTD,A0090265, 11/01/2017,AAS0276937,150.51,N,N/A,N,N/A
Pendle Borough Council,Financial Services,Transport Related Expense,Diesel Oil,3202,FUELMATE LTD,A0090265, 18/01/2017,AAS0276938,157.95,N,N/A,N,N/A
Pendle Borough Council,Financial Services,Transport Related Expense,Diesel Oil,3202,FUELMATE LTD,A0090265, 24/01/2017,AAS0277173,51.4,N,N/A,N,N/A
Pendle Borough Council,Financial Services,Transport Related Expense,Diesel Oil,3202,FUELMATE LTD,A0090265, 18/01/2017,AAS0276938,78.9,N,N/A,N,N/A
Pendle Borough Council,Financial Services,Transport Related Expense,Diesel Oil,3202,FUELMATE LTD,A0090265, 11/01/2017,AAS0276937,114.51,N,N/A,N,N/A
Pendle Borough Council,Financial Services,Transport Related Expense,Diesel Oil,3202,FUELMATE LTD,A0090265, 31/01/2017,AAS0277357,132.09,N,N/A,N,N/A
Pendle Borough Council,Financial Services,Transport Related Expense,Diesel Oil,3202,FUELMATE LTD,A0090265, 03/01/2017,AAS0276936,161,N,N/A,N,N/A
Pendle Borough Council,Financial Services,Transport Related Expense,Diesel Oil,3202,FUELMATE LTD,A0090265, 03/01/2017,AAS0276936,62.54,N,N/A,N,N/A
Pendle Borough Council,Financial Services,Transport Related Expense,Diesel Oil,3202,FUELMATE LTD,A0090265, 18/01/2017,AAS0276938,62.82,N,N/A,N,N/A
Pendle Borough Council,Financial Services,Transport Related Expense,Diesel Oil,3202,FUELMATE LTD,A0090265, 31/01/2017,AAS0277357,40.02,N,N/A,N,N/A
Pendle Borough Council,Financial Services,Transport Related Expense,Diesel Oil,3202,FUELMATE LTD,A0090265, 03/01/2017,AAS0276936,43.99,N,N/A,N,N/A
Pendle Borough Council,Financial Services,Transport Related Expense,Diesel Oil,3202,FUELMATE LTD,A0090265, 18/01/2017,AAS0276938,56.94,N,N/A,N,N/A
Pendle Borough Council,Financial Services,Transport Related Expense,Diesel Oil,3202,FUELMATE LTD,A0090265, 03/01/2017,AAS0276936,65.06,N,N/A,N,N/A
Pendle Borough Council,Financial Services,Transport Related Expense,Diesel Oil,3202,FUELMATE LTD,A0090265, 31/01/2017,AAS0277357,52.45,N,N/A,N,N/A
Pendle Borough Council,Financial Services,Transport Related Expense,Diesel Oil,3202,FUELMATE LTD,A0090265, 11/01/2017,AAS0276937,46.8,N,N/A,N,N/A
Pendle Borough Council,Financial Services,Transport Related Expense,Diesel Oil,3202,FUELMATE LTD,A0090265, 03/01/2017,AAS0276936,52.77,N,N/A,N,N/A
Pendle Borough Council,Financial Services,Transport Related Expense,Diesel Oil,3202,FUELMATE LTD,A0090265, 03/01/2017,AAS0276936,62.24,N,N/A,N,N/A
Pendle Borough Council,Financial Services,Transport Related Expense,Diesel Oil,3202,FUELMATE LTD,A0090265, 31/01/2017,AAS0277357,71.33,N,N/A,N,N/A
Pendle Borough Council,Financial Services,Transport Related Expense,Diesel Oil,3202,FUELMATE LTD,A0090265, 11/01/2017,AAS0276937,73.2,N,N/A,N,N/A
Pendle Borough Council,Financial Services,Transport Related Expense,Diesel Oil,3202,FUELMATE LTD,A0090265, 31/01/2017,AAS0277357,43.36,N,N/A,N,N/A
Pendle Borough Council,Financial Services,Transport Related Expense,Diesel Oil,3202,FUELMATE LTD,A0090265, 11/01/2017,AAS0276937,46.49,N,N/A,N,N/A
Pendle Borough Council,Financial Services,Transport Related Expense,Diesel Oil,3202,FUELMATE LTD,A0090265, 03/01/2017,AAS0276936,62.53,N,N/A,N,N/A
Pendle Borough Council,Financial Services,Transport Related Expense,Diesel Oil,3202,FUELMATE LTD,A0090265, 03/01/2017,AAS0276936,48.54,N,N/A,N,N/A
Pendle Borough Council,Financial Services,Transport Related Expense,Diesel Oil,3202,FUELMATE LTD,A0090265, 11/01/2017,AAS0276937,45.27,N,N/A,N,N/A
Pendle Borough Council,Financial Services,Transport Related Expense,Diesel Oil,3202,FUELMATE LTD,A0090265, 03/01/2017,AAS0276936,35.71,N,N/A,N,N/A
Pendle Borough Council,Financial Services,Transport Related Expense,Diesel Oil,3202,FUELMATE LTD,A0090265, 31/01/2017,AAS0277357,36.13,N,N/A,N,N/A
Pendle Borough Council,Financial Services,Transport Related Expense,Diesel Oil,3202,FUELMATE LTD,A0090265, 18/01/2017,AAS0276938,68.38,N,N/A,N,N/A
Pendle Borough Council,Financial Services,Transport Related Expense,Diesel Oil,3202,FUELMATE LTD,A0090265, 24/01/2017,AAS0277173,38.17,N,N/A,N,N/A
Pendle Borough Council,Financial Services,Transport Related Expense,Diesel Oil,3202,FUELMATE LTD,A0090265, 11/01/2017,AAS0276937,71.09,N,N/A,N,N/A
Pendle Borough Council,Financial Services,Transport Related Expense,Diesel Oil,3202,FUELMATE LTD,A0090265, 31/01/2017,AAS0277357,74.5,N,N/A,N,N/A
Pendle Borough Council,Financial Services,Transport Related Expense,Diesel Oil,3202,FUELMATE LTD,A0090265, 18/01/2017,AAS0276938,94.22,N,N/A,N,N/A
Pendle Borough Council,Financial Services,Transport Related Expense,Diesel Oil,3202,FUELMATE LTD,A0090265, 03/01/2017,AAS0276936,146.26,N,N/A,N,N/A
Pendle Borough Council,Financial Services,Transport Related Expense,Diesel Oil,3202,FUELMATE LTD,A0090265, 24/01/2017,AAS0277173,33.24,N,N/A,N,N/A
Pendle Borough Council,Financial Services,Transport Related Expense,Diesel Oil,3202,FUELMATE LTD,A0090265, 31/01/2017,AAS0277357,76.94,N,N/A,N,N/A
Pendle Borough Council,Financial Services,Transport Related Expense,Diesel Oil,3202,FUELMATE LTD,A0090265, 03/01/2017,AAS0276936,77.76,N,N/A,N,N/A
Pendle Borough Council,Financial Services,Transport Related Expense,Diesel Oil,3202,FUELMATE LTD,A0090265, 11/01/2017,AAS0276937,79.15,N,N/A,N,N/A
Pendle Borough Council,Financial Services,Transport Related Expense,Diesel Oil,3202,FUELMATE LTD,A0090265, 18/01/2017,AAS0276938,83.16,N,N/A,N,N/A
Pendle Borough Council,Financial Services,Transport Related Expense,Diesel Oil,3202,FUELMATE LTD,A0090265, 24/01/2017,AAS0277173,30.85,N,N/A,N,N/A
Pendle Borough Council,Financial Services,Transport Related Expense,Diesel Oil,3202,FUELMATE LTD,A0090265, 11/01/2017,AAS0276937,39.37,N,N/A,N,N/A
Pendle Borough Council,Financial Services,Transport Related Expense,Diesel Oil,3202,FUELMATE LTD,A0090265, 31/01/2017,AAS0277357,54.92,N,N/A,N,N/A
Pendle Borough Council,Financial Services,Transport Related Expense,Diesel Oil,3202,FUELMATE LTD,A0090265, 18/01/2017,AAS0276938,79.27,N,N/A,N,N/A
Pendle Borough Council,Financial Services,Transport Related Expense,Diesel Oil,3202,FUELMATE LTD,A0090265, 03/01/2017,AAS0276936,87.37,N,N/A,N,N/A
Pendle Borough Council,Financial Services,Transport Related Expense,Diesel Oil,3202,FUELMATE LTD,A0090265, 03/01/2017,AAS0276936,43.65,N,N/A,N,N/A
Pendle Borough Council,Financial Services,Transport Related Expense,Diesel Oil,3202,FUELMATE LTD,A0090265, 18/01/2017,AAS0276938,45.06,N,N/A,N,N/A
Pendle Borough Council,Financial Services,Transport Related Expense,Diesel Oil,3202,FUELMATE LTD,A0090265, 11/01/2017,AAS0276937,46.07,N,N/A,N,N/A
Pendle Borough Council,Financial Services,Transport Related Expense,Diesel Oil,3202,FUELMATE LTD,A0090265, 31/01/2017,AAS0277357,58.22,N,N/A,N,N/A
Pendle Borough Council,Financial Services,Transport Related Expense,Diesel Oil,3202,FUELMATE LTD,A0090265, 31/01/2017,AAS0277357,24.25,N,N/A,N,N/A
Pendle Borough Council,Financial Services,Transport Related Expense,Diesel Oil,3202,FUELMATE LTD,A0090265, 11/01/2017,AAS0276937,48.96,N,N/A,N,N/A
Pendle Borough Council,Financial Services,Transport Related Expense,Diesel Oil,3202,FUELMATE LTD,A0090265, 11/01/2017,AAS0276937,40.63,N,N/A,N,N/A
Pendle Borough Council,Financial Services,Transport Related Expense,Diesel Oil,3202,FUELMATE LTD,A0090265, 31/01/2017,AAS0277357,41.78,N,N/A,N,N/A
Pendle Borough Council,Financial Services,Transport Related Expense,Diesel Oil,3202,FUELMATE LTD,A0090265, 31/01/2017,AAS0277357,48.48,N,N/A,N,N/A
Pendle Borough Council,Financial Services,Transport Related Expense,Diesel Oil,3202,FUELMATE LTD,A0090265, 03/01/2017,AAS0276936,45.53,N,N/A,N,N/A
Pendle Borough Council,Financial Services,Transport Related Expense,Diesel Oil,3202,FUELMATE LTD,A0090265, 11/01/2017,AAS0276937,50.42,N,N/A,N,N/A
Pendle Borough Council,Financial Services,Transport Related Expense,Diesel Oil,3202,FUELMATE LTD,A0090265, 03/01/2017,AAS0276936,49.34,N,N/A,N,N/A
Pendle Borough Council,Financial Services,Transport Related Expense,Diesel Oil,3202,FUELMATE LTD,A0090265, 11/01/2017,AAS0276937,59.51,N,N/A,N,N/A
Pendle Borough Council,Financial Services,Transport Related Expense,Diesel Oil,3202,FUELMATE LTD,A0090265, 03/01/2017,AAS0276936,64.74,N,N/A,N,N/A
Pendle Borough Council,Financial Services,Transport Related Expense,Diesel Oil,3202,FUELMATE LTD,A0090265, 18/01/2017,AAS0276938,102.56,N,N/A,N,N/A
Pendle Borough Council,Financial Services,Transport Related Expense,Diesel Oil,3202,FUELMATE LTD,A0090265, 03/01/2017,AAS0276936,76.08,N,N/A,N,N/A
Pendle Borough Council,Financial Services,Transport Related Expense,Diesel Oil,3202,FUELMATE LTD,A0090265, 24/01/2017,AAS0277173,83.29,N,N/A,N,N/A
Pendle Borough Council,Financial Services,Transport Related Expense,Diesel Oil,3202,FUELMATE LTD,A0090265, 11/01/2017,AAS0276937,53.12,N,N/A,N,N/A
Pendle Borough Council,Financial Services,Transport Related Expense,Diesel Oil,3202,FUELMATE LTD,A0090265, 18/01/2017,AAS0276938,54.71,N,N/A,N,N/A
Pendle Borough Council,Financial Services,Transport Related Expense,Diesel Oil,3202,FUELMATE LTD,A0090265, 03/01/2017,AAS0276936,40.59,N,N/A,N,N/A
Pendle Borough Council,Financial Services,Transport Related Expense,Diesel Oil,3202,FUELMATE LTD,A0090265, 18/01/2017,AAS0276938,46.61,N,N/A,N,N/A
Pendle Borough Council,Financial Services,Transport Related Expense,Diesel Oil,3202,FUELMATE LTD,A0090265, 11/01/2017,AAS0276937,52.23,N,N/A,N,N/A
Pendle Borough Council,Financial Services,Transport Related Expense,Diesel Oil,3202,FUELMATE LTD,A0090265, 03/01/2017,AAS0276936,51.51,N,N/A,N,N/A
Pendle Borough Council,Financial Services,Transport Related Expense,Diesel Oil,3202,FUELMATE LTD,A0090265, 11/01/2017,AAS0276937,54.06,N,N/A,N,N/A
Pendle Borough Council,Financial Services,Transport Related Expense,Diesel Oil,3202,FUELMATE LTD,A0090265, 31/01/2017,AAS0277357,55.16,N,N/A,N,N/A
Pendle Borough Council,Financial Services,Transport Related Expense,Diesel Oil,3202,FUELMATE LTD,A0090265, 11/01/2017,AAS0276937,59.28,N,N/A,N,N/A
Pendle Borough Council,Financial Services,Transport Related Expense,Diesel Oil,3202,FUELMATE LTD,A0090265, 31/01/2017,AAS0277357,47,N,N/A,N,N/A
Pendle Borough Council,Financial Services,Transport Related Expense,Diesel Oil,3202,FUELMATE LTD,A0090265, 11/01/2017,AAS0276937,53.09,N,N/A,N,N/A
Pendle Borough Council,Financial Services,Transport Related Expense,Diesel Oil,3202,FUELMATE LTD,A0090265, 11/01/2017,AAS0276937,58.09,N,N/A,N,N/A
Pendle Borough Council,Financial Services,Transport Related Expense,Diesel Oil,3202,FUELMATE LTD,A0090265, 31/01/2017,AAS0277357,72.03,N,N/A,N,N/A
Pendle Borough Council,Financial Services,Transport Related Expense,Diesel Oil,3202,FUELMATE LTD,A0090265, 18/01/2017,AAS0276938,42.68,N,N/A,N,N/A
Pendle Borough Council,Financial Services,Transport Related Expense,Diesel Oil,3202,FUELMATE LTD,A0090265, 11/01/2017,AAS0276937,22.95,N,N/A,N,N/A
Pendle Borough Council,Financial Services,Transport Related Expense,Diesel Oil,3202,FUELMATE LTD,A0090265, 31/01/2017,AAS0277357,25.93,N,N/A,N,N/A
Pendle Borough Council,Financial Services,Transport Related Expense,Diesel Oil,3202,FUELMATE LTD,A0090265, 18/01/2017,AAS0276938,33.09,N,N/A,N,N/A
Pendle Borough Council,Financial Services,Transport Related Expense,Diesel Oil,3202,FUELMATE LTD,A0090265, 24/01/2017,AAS0277173,38.97,N,N/A,N,N/A
Pendle Borough Council,Financial Services,Transport Related Expense,Diesel Oil,3202,FUELMATE LTD,A0090265, 11/01/2017,AAS0276937,46.2,N,N/A,N,N/A
Pendle Borough Council,Financial Services,Transport Related Expense,Diesel Oil,3202,FUELMATE LTD,A0090265, 03/01/2017,AAS0276936,48.37,N,N/A,N,N/A
Pendle Borough Council,Financial Services,Transport Related Expense,Diesel Oil,3202,FUELMATE LTD,A0090265, 18/01/2017,AAS0276938,48.65,N,N/A,N,N/A
Pendle Borough Council,Revenues Services,Supplies and Services,Consultants Fees,4401,HM COURTS & TRIBUNALS SERVICE,A0090353, 12/01/2017,TRE0276713,525,N,N/A,N,N/A
Pendle Borough Council,Revenues Services,Supplies and Services,Consultants Fees,4401,HM COURTS & TRIBUNALS SERVICE,A0090353, 12/01/2017,TRE0276714,525,N,N/A,N,N/A
Pendle Borough Council,Revenues Services,Supplies and Services,Consultants Fees,4401,HM COURTS & TRIBUNALS SERVICE,A0090353, 12/01/2017,TRE0276715,675,N,N/A,N,N/A
Pendle Borough Council,Economic Development & Tourism,Supplies and Services,Grants/Contributions,4739,ENTERPRISE LANCASHIRE LIMITED,A0090413, 05/01/2017,REG0276535,1380,N,N/A,N,N/A
Pendle Borough Council,Chief Executives Policy Unit,Supplies and Services,Consultants Fees,4401,REDACTED - PERSONAL DATA,A0090438, 05/01/2017,COR0276528,9840,N,N/A,N,N/A
Pendle Borough Council,Financial Services,Premises Related Expense,Electricity,2203,HAVEN POWER LIMITED,A0090490, 19/01/2017,AAS0276877,17.26,N,N/A,N,N/A
Pendle Borough Council,Engineering & Special Projects,,Other Income : Non-VATable,9303,REDACTED - PERSONAL DATA,A0090527, 05/01/2017,HED0276550,17,N,N/A,N,N/A
Pendle Borough Council,Engineering & Special Projects,,Other Income : Non-VATable,9303,REDACTED - PERSONAL DATA,A0090527, 05/01/2017,HED0276550,234,N,N/A,N,N/A
Pendle Borough Council,Engineering & Special Projects,,Other Income : Non-VATable,9303,REDACTED - PERSONAL DATA,A0090619, 19/01/2017,HED0276806,17,N,N/A,N,N/A
Pendle Borough Council,Housing Regeneration Services,,Paid in the Year,PD03,REDACTED - PERSONAL DATA,A0090648, 19/01/2017,HMR0276870,1356,N,N/A,N,N/A
Pendle Borough Council,Operational Services,Supplies and Services,Sub-Contractors,4007,ASGARD,A0090675, 12/01/2017,OPS0276622,12.49,N,N/A,N,N/A
Pendle Borough Council,Revenues Services,Supplies and Services,Consultants Fees,4401,PS&P LTD,A0090720, 19/01/2017,TRE0276869,6.54,N,N/A,N,N/A
Pendle Borough Council,Revenues Services,Supplies and Services,Consultants Fees,4401,PS&P LTD,A0090720, 26/01/2017,TRE0277023,58.95,N,N/A,N,N/A
Pendle Borough Council,Housing Regeneration Services,Supplies and Services,"Monitoring, Console etc",4510,TOGETHER HOUSING ASSOCIATION,A0090740, 26/01/2017,HMR0276951,24.37,N,N/A,N,N/A
Pendle Borough Council,Operational Services,Agency Staff,Emp : Agency Wages,1004,M65 RECRUITMENT,A0090760, 12/01/2017,OPS0276753,154.88,N,N/A,N,N/A
Pendle Borough Council,Operational Services,Agency Staff,Emp : Agency Wages,1004,M65 RECRUITMENT,A0090760, 12/01/2017,OPS0276667,281.14,N,N/A,N,N/A
Pendle Borough Council,Operational Services,Agency Staff,Emp : Agency Wages,1004,M65 RECRUITMENT,A0090760, 05/01/2017,OPS0276531,285.9,N,N/A,N,N/A
Pendle Borough Council,Operational Services,Agency Staff,Emp : Agency Wages,1004,M65 RECRUITMENT,A0090760, 12/01/2017,OPS0276665,352.61,N,N/A,N,N/A
Pendle Borough Council,Operational Services,Agency Staff,Emp : Agency Wages,1004,M65 RECRUITMENT,A0090760, 12/01/2017,OPS0276667,138.18,N,N/A,N,N/A
Pendle Borough Council,Operational Services,Agency Staff,Emp : Agency Wages,1004,M65 RECRUITMENT,A0090760, 12/01/2017,OPS0276665,142.95,N,N/A,N,N/A
Pendle Borough Council,Operational Services,Agency Staff,Emp : Agency Wages,1004,M65 RECRUITMENT,A0090760, 12/01/2017,OPS0276753,222.77,N,N/A,N,N/A
Pendle Borough Council,Housing Regeneration Services,,Paid in the Year,PD03,WILLIAM M SNAPE MANUFACTURING SERVICES UK LTD,A0090766, 12/01/2017,HMR0276722,1468.8,N,N/A,N,N/A
Pendle Borough Council,Housing Regeneration Services,Capital Costs,Ren Grant : 1996 Act,CH22,ROOF SPACE CONVERSIONS,A0090820, 19/01/2017,HMR0276867,436,N,N/A,N,72.67
Pendle Borough Council,Engineering & Special Projects,Premises Related Expense,Grounds : R & M : Day to Day : Routine,2101,TOM HARDMAN,A0090821, 05/01/2017,HED0276533,150,N,N/A,N,N/A
Pendle Borough Council,Engineering & Special Projects,Premises Related Expense,Grounds : R & M : Day to Day : Routine,2101,TOM HARDMAN,A0090821, 05/01/2017,HED0276533,90,N,N/A,N,N/A
Pendle Borough Council,Engineering & Special Projects,Premises Related Expense,Grounds : R & M : Day to Day : Routine,2101,TOM HARDMAN,A0090821, 05/01/2017,HED0276533,105,N,N/A,N,N/A
Pendle Borough Council,Financial Services,Premises Related Expense,Electricity,2203,GAZPROM ENERGY,A0090838, 19/01/2017,AAS0276878,11.21,N,N/A,N,N/A
Pendle Borough Council,Parks & Recreation Services,Supplies and Services,Publicity & advertisement,4704,TUVISIO,A0090842, 12/01/2017,PCO0276543,93.99,N,N/A,N,N/A
Pendle Borough Council,Housing Regeneration Services,,Paid in the Year,PD03,CROCODILE FLOOD SOLUTIONS LIMITED,A0090962, 12/01/2017,HMR0276721,1200,N,N/A,N,N/A
Pendle Borough Council,Housing Regeneration Services,,Paid in the Year,PD03,CROCODILE FLOOD SOLUTIONS LIMITED,A0090962, 26/01/2017,HMR0276978,1920,N,N/A,N,N/A
Pendle Borough Council,Housing Regeneration Services,,Paid in the Year,PD03,CROCODILE FLOOD SOLUTIONS LIMITED,A0090962, 12/01/2017,HMR0276633,2500,N,N/A,N,N/A
Pendle Borough Council,Engineering & Special Projects,,Paid in the Year,PD03,REDACTED - PERSONAL DATA,A0090985, 12/01/2017,HED0276749,5000,N,N/A,N,N/A
Pendle Borough Council,Economic Development & Tourism,Supplies and Services,Grants/Contributions,4739,SAMS BEAUTY BOX,A0090991, 12/01/2017,REG0276706,722.25,N,N/A,N,N/A
Pendle Borough Council,Economic Development & Tourism,Capital Costs,Capital : Payments,CD14,SAMS BEAUTY BOX,A0090991, 12/01/2017,REG0276706,636,N,N/A,N,N/A
Pendle Borough Council,Property Services,Premises Related Expense,Grounds : R & M : Day to Day : Routine,2101,DOVER VANGUARD ROLLER SHUTTERS LIMITED,A0091002, 05/01/2017,EST0276583,3559,N,N/A,N,N/A
Pendle Borough Council,Housing Regeneration Services,Capital Costs,Ren Grant : 1996 Act,CH22,JONES BUILDING CONTRACTORS,A0091019, 05/01/2017,HMR0276520,5889.06,N,N/A,N,981.51
Pendle Borough Council,Economic Development & Tourism,Supplies and Services,Grants/Contributions,4739,THAT COW,A0091021, 26/01/2017,REG0277006,626.55,N,N/A,N,N/A
Pendle Borough Council,Information Services,Supplies and Services,Computer Charges,4509,CHESS ICT BURNLEY LIMITED,A0091033, 12/01/2017,ITS0276711,10,N,N/A,N,N/A
Pendle Borough Council,Information Services,Supplies and Services,Computer Charges,4509,CHESS ICT BURNLEY LIMITED,A0091033, 12/01/2017,ITS0276711,169.78,N,N/A,N,N/A
Pendle Borough Council,Housing Regeneration Services,,Paid in the Year,PD03,REDACTED - PERSONAL DATA,A0091034, 26/01/2017,HMR0276977,1160,N,N/A,N,N/A
Pendle Borough Council,Housing Regeneration Services,Capital Costs,Ren Grant : 1996 Act,CH22,RESINDRIVES.CO.UK,A0091039, 05/01/2017,HMR0276547,10495,N,N/A,N,1749.17
Pendle Borough Council,Housing Regeneration Services,Capital Costs,Ren Grant : 1996 Act,CH22,REDACTED - PERSONAL DATA,A0091040, 05/01/2017,HMR0276545,550,N,N/A,N,91.67
Pendle Borough Council,Economic Development & Tourism,Capital Costs,Capital : Payments,CD14,GHAUSIA FOOD STORE,A0091041, 05/01/2017,REG0276536,3000,N,N/A,N,N/A
Pendle Borough Council,Parks & Recreation Services,Premises Related Expense,Grounds : R & M : Day to Day : Routine,2101,REDACTED - PERSONAL DATA,A0091042, 05/01/2017,PCO0276617,-979.17,N,N/A,N,N/A
Pendle Borough Council,Parks & Recreation Services,Premises Related Expense,Grounds : R & M : Day to Day : Routine,2101,REDACTED - PERSONAL DATA,A0091042, 05/01/2017,PCO0276617,979.17,N,N/A,N,N/A
Pendle Borough Council,Parks & Recreation Services,Premises Related Expense,Grounds : R & M : Day to Day : Routine,2101,REDACTED - PERSONAL DATA,A0091043, 05/01/2017,PCO0276618,-1170.83,N,N/A,N,N/A
Pendle Borough Council,Parks & Recreation Services,Premises Related Expense,Grounds : R & M : Day to Day : Routine,2101,REDACTED - PERSONAL DATA,A0091043, 05/01/2017,PCO0276618,1170.83,N,N/A,N,N/A
Pendle Borough Council,Operational Services,Indirect Employee Expenses,Emp : Medical Expenses,1236,ALCODIGITAL LIMITED,A0091044, 26/01/2017,OPS0277036,70,N,N/A,N,N/A
Pendle Borough Council,Planning & Building Control,,Fees Income : VATable,9202,ACE CASE LIMITED,A0091046, 19/01/2017,PBC0276886,14.17,N,N/A,N,N/A
Pendle Borough Council,Human Resources,Supplies and Services,Seminars etc All Costs,4601,MALLARD CONSULTANCY LIMITED,A0091047, 26/01/2017,PER0277019,75,N,N/A,N,N/A
Pendle Borough Council,Housing Regeneration Services,Capital Costs,Capital : Payments,CD14,REDACTED - PERSONAL DATA,A0091049, 26/01/2017,HMR0276957,3000,N,N/A,N,N/A
Pendle Borough Council,Financial Services,Supplies and Services,Subscriptions & Donations,4706,HM REVENUE & CUSTOMS,A0091050, 26/01/2017,AAS0277012,415,N,N/A,N,N/A
Pendle Borough Council,Planning & Building Control,,Fees Income : Non-VATable,9302,REDACTED - PERSONAL DATA,A0091053, 26/01/2017,PBC0277022,110,N,N/A,N,N/A
Pendle Borough Council,Planning & Building Control,,Fees Income : VATable,9202,REDACTED - PERSONAL DATA,A0091054, 26/01/2017,PBC0277021,29.17,N,N/A,N,N/A
Pendle Borough Council,Financial Services,Premises Related Expense,Grounds : R & M : Day to Day : Routine,2101,DIRTWORKS BMX,A0091056, 26/01/2017,AAS0277044,-2000,N,N/A,N,N/A
Pendle Borough Council,Financial Services,Premises Related Expense,Grounds : R & M : Day to Day : Routine,2101,DIRTWORKS BMX,A0091056, 26/01/2017,AAS0277044,6500,N,N/A,N,N/A
Pendle Borough Council,Chief Executives Policy Unit,Supplies and Services,Other Expenses,4705,ST LUKES PCC,A0091057, 26/01/2017,COR0277042,600,N,N/A,N,N/A
